Workbook

Sheet Instructions
C2: DCIPS Compensation Workbench (CWB)
E3: 2024
E4: For Official Use Only Information protected by the Privacy Act of 1974
C5: This application will help DCIPS organizations conduct the DCIPS pay pool process.
C7: How to use this spreadsheet:
C8: Step 1: | D8: your pay pool’s data into the spreadsheet. Remember that your data file must be in the same folder as the spreadsheet. The spreadsheet will then import your data and display a confirmation message when complete.
C9: Step 2: | D9: Administrator Only: Enter the pay pool's budget parameters, bonus increment, and administrator options on the Pay Pool Budget and Setup worksheet. To lock the worksheet, select the lock setup button and enter a password that you will remember. To unlock the worksheet, select the unlock setup button and enter your password.
C10: Step 3: | D10: NGA Only: Reconcile base pay increase amounts in the Pay Pool Panel worksheet. Enter justification for any adjustments if required.
C11: Step 4: | D11: Determine a rating threshold for bonuses. This threshold rating receives 1 bonus share. Decimal rating increments between the threshold and a rating of 5 will receive increasing bonus amounts.
C12: Step 5: | D12: Review data and charts on the statistics worksheets to ensure the pay pool results are fair and consistent.
C13: Step 6: | H13: Not Certified
C14: Step 7:
C15: Step 8: | D15: once the results have been approved by the PRA. Employee notices will be generated in the order in which they appear in the Pay Pool Panel worksheet. If filters have been set, notices will only be generated for visible Employees.
C16: Notes and Special Features:
C17: A number of features are accessed through buttons on the custom tool bar. These include Import, Export, and features such as Hide and Sort. The Validate feature is critical to the correct use of the spreadsheet. When the Validate button is clicked on any of the worksheets where it appears, spreadsheet errors will be circled in red on the Pay Pool Panel worksheet for easy identification and attention. Right-clicking the left and right arrows in the bottom left of the the Excel application window will allow fast switching to any sheet in the CWB.
B49: FALSE
B51: =OFFSET(aPPM,1,0) -> 0
B53: =OFFSET(aPRA,1,0) -> 0
B55: =LEFT(Export_44,4) -> 2024
B56: =IF(LEN(OFFSET(aPPID,1,0))=0,"",OFFSET(aPPID,1,0)) -> 

Sheet Budget and Setup
B1: Pay Pool Population and Salary Information | K1: Go to:
D2: Population | G2: Sum of Base Salary | I2: Sum of Adjusted Salary
C3: Entire PayPool | D3: =EmpCount -> 0 | G3: =SUM(BasePay) -> 0 | I3: =SUM(AdjSalary) -> 0
C4: Rated | D4: =COUNTIF(Rating,">0") -> 0 | G4: =SUMIF(Rating,">0",BasePay) -> 0 | I4: =SUMIF(Rating,">0",AdjSalary) -> 0
C5: Rated and Included in Salary Calculation | D5: =SUM((Rating>0)*(IncInSalFund="Yes")*1) -> 0 | G5: =SUM((Rating>0)*(IncInSalFund="Yes")*BasePay) -> 0 | I5: =SUM((Rating>0)*(IncInSalFund="Yes")*AdjSalary) -> 0
C6: Rated and Included in Bonus Calculation | D6: =SUM((Rating>0)*(IncInBonFunds="Yes")*1) -> 0 | G6: =SUM((Rating>0)*(IncInBonFunds="Yes")*BasePay) -> 0 | I6: =SUM((Rating>0)*(IncInBonFunds="Yes")*AdjSalary) -> 0
B9: Pay Pool Salary Increase Budget
E11: % | G11: $
C13: Salary Increase Funding | E13: 0.023 | G13: =ROUND(SumBasePayElig*E13,0) -> 0
C15: - Organization Withhold/Reserve (optional) | E15: 0 | G15: =IF(EmpCount=0,0,ROUND(SalResvPercent*SalIncFunding,0)) -> 0
C17: + Additional Salary Increase Funding (optional) | E17: 0 | G17: =ROUND(SalIncFunding*SalIncPercent,0) -> 0
C19: Total Salary Increase Budget | E19: =IF(SumBasePayElig=0,0,G19/G5) -> 0 | G19: =G13-G15+G17 -> 0
C21: - Adjustment Funding (optional) | E21: 0 | G21: =ROUND(SalInterimBudget*SalSetAsidePercent,0) -> 0
C23: Salary Increase Funding Available to Algorithm | E23: =IF(SumBasePayElig=0,0,SalFund/SumBasePayElig) -> 0 | G23: =G19-G21 -> 0
B26: Pay Pool Bonus Budget
E27: Adjusted
C28: Use Base Salary or Adjusted Basic Pay? | E28: Base Salary | G28: Adjusted Basic Pay
E30: % | G30: % | I30: $
E31: 0.01 | G31: 0.025
C32: Bonus Budget Percentage | E32: =IF(EmpCount=0,0,ROUND(BonFund/SumBonusElig,6)) -> 0 | G32: 0.025 | I32: =ROUND(SumBonusElig_Adj*G32,0) -> 0
C34: - Organization Withhold/Reserve (optional) | E34: =IF(EmpCount=0,0,ROUND(BonResvDollar/BonFund,6)) -> 0 | G34: 0 | I34: =IF(EmpCount=0,0,ROUND(BonResvPercent_Adj*BonFund,0)) -> 0
C36: + Additional Bonus Funding (optional) | E36: =IF(EmpCount=0,0,ROUND(BonFundDollar/BonFund,6)) -> 0 | G36: 0 | I36: =IF(EmpCount=0,0,ROUND(BonFundPercent_Adj*BonFund,0)) -> 0
C38: Total Bonus Budget | E38: =IF(SumBonusElig=0,0,I38/SumBonusElig) -> 0 | G38: =IF(SumBonusElig_Adj=0,0,I38/SumBonusElig_Adj) -> 0 | I38: =I32-I34+I36 -> 0
C40: - Adjustment Funding (optional) | E40: =IF(EmpCount=0,0,ROUND(BonSetAsideDollar/BonInterimBudget,6)) -> 0 | G40: 0 | I40: =IF(EmpCount=0,0,ROUND(BonSetAsidePercent_Adj*BonInterimBudget,0)) -> 0
C42: Bonus Funding Available to Algorithm | E42: =IF(SumBonusElig=0,0,bonusfund/SumBonusElig) -> 0 | G42: =IF(SumBonusElig_Adj=0,0,bonusfund/SumBonusElig_Adj) -> 0 | I42: =I38-I40 -> 0
B46: DCIPS Quality Increase / Sustained Quality Increase Budget
C48: Budget for DQI/SQI (Set by DCIPS Guidance) | G48: 0.0017 | I48: =ROUND(Export_43*G48,0) -> 0
B51: Bonus Setup
C53: Maximum Bonus | D53: 25000
C55: Share Increment | D55: 0.1
C57: What is the share increment? The DCIPS bonus algorithm gives the employee receiving the threshold rating 1 bonus share. Then each tenth of a rating higer receives X% more shares than the previous rating, where X = the share increment.
B63: Floor Increase
C65: =CONCATENATE(1+LEFT(Export_44,4)," Salary Increase Floor (Set by DoD) =") -> 2025 Salary Increase Floor (Set by DoD) = | D65: =GPI -> 0.01
D68: Band
B69: Administrator Options | D69: 2
C71: Allow edits to budget and payout eligiblity in the Pay Pool Panel worksheet (columns G, H, I, and J)? | G71: Yes
C74: Allow edits to the JDA column in the Pay Pool Panel worksheet (column N)? | G74: Yes
C77: Allow edits to the Variable Control Points in the Pay Pool Panel worksheet (column BI)? | G77: Yes
C80: Allow edits to the Rating Threshold in the Pay Pool Panel Worksheet (cell EA7)? | G80: Yes
C83: Allow printing of Employee Notices? | G83: Yes
C85: Allow modifications to the Special Situated Condition value list? | F85: Yes | G85: Yes
C87: Allow modifications to the Bonus Adjustment Justification value list? | F87: Yes | G87: Yes

Sheet Pay Pool Panel
A1: Go To: | CT1: Salary Increase Budget | EA1: Impact of Decisions | EG1: Bonus Budget
AT2: Ratings | BB2: Salary | BL2: Total Shares | BM2: =SUM(PristineInterimShares) -> 0 | BR2: Total Shares | BS2: =SUM(PristineFinalShares) -> 0 | BX2: =SUM(ProShares) -> 0 | CF2: Total Shares | CG2: =SUM(FinalShares) -> 0 | CU2: Salary Increase Fund | CV2: =SalInterimBudget -> 0 | CW2: =SalInterimBudPct -> 0 | CX2: % of Budget | DU2: Bonus | DZ2: Employees Eligible for Bonus | EA2: =SUMPRODUCT((Rating>0)*(BonusEligible="Yes")*1) -> 0 | EG2: Total Bonus Funding | EH2: =BonInterimBudget -> 0 | EI2: % of Budget
BB3: Incr | BL3: Interim SV | BM3: =IF($BM$2>0,SalInterimBudget/BM2,0) -> 0 | BR3: Final SV | BS3: =IF($BS$2>0,(SalInterimBudget-SUM(BQ12:BQ13))/BS2,0) -> 0 | BX3: =IF($BX$2>0,SalFund/BX2,0) -> 0 | CF3: Final SV | CG3: =IF($CG$2>0,(SalFund-SUM(CE12:CE13)+IF(SalAdjust<0,-SalAdjust,IF(SalAdjPot<0,SalAdjPot,0)))/CG2,0) -> 0 | CU3: Funds Allocated via Algorithm | CV3: =SUM(CH12:CH13) -> 0 | CW3: =IF(CV2=0,0,(CV3/CV2)*CW2) -> 0 | CX3: =IF($CW$2=0,0,$CW$3/$CW$2) -> 0 | DZ3: Employees Receiving Bonus | EA3: =COUNTIF(TotalBonus,">0") -> 0 | EB3: =IF(SUMPRODUCT((Rating>0)*(BonusEligible="Yes")*1)=0,0,$EA$3/SUMPRODUCT((Rating>0)*(BonusEligible="Yes")*1)) -> 0 | EG3: Allocated Via Algorithm | EH3: =SUM(InitialBonus) -> 0 | EI3: =IF(EH$2=0,0,EH3/EH$2) -> 0
CU4: Funds Allocated via Adjustment | CV4: =SUM(CK12:CK13) -> 0 | CW4: =IF(CV2=0,0,(CV4/CV2)*CW2) -> 0 | CX4: =IF($CW$2=0,0,CW4/CW2) -> 0 | DZ4: Min Bonus | EA4: =IF(COUNTIF(TotalBonus,">0")=0,0,LARGE(TotalBonus,COUNTIF(TotalBonus,">0"))) -> 0 | EB4: =IF(COUNTIF(TotalBonusPer,">0")=0,0,LARGE(TotalBonusPer,COUNTIF(TotalBonusPer,">0"))) -> 0 | EC4: of band midpoint | EG4: Allocated Via Adjustment | EH4: =EF10 -> 0 | EI4: =IF(EH$2=0,0,EH4/EH$2) -> 0
CU5: Total Funds Allocated | CV5: =SUM(CV3:CV4) -> 0 | CW5: =IF(CV2=0,0,(CV5/CV2)*CW2) -> 0 | DU5: =BonusMaximum -> 25000 | DZ5: Max Bonus | EA5: =MAX(TotalBonus) -> 0 | EB5: =MAX(TotalBonusPer) -> 0 | EC5: of band midpoint | EG5: Total Funds Allocated | EH5: =SUM(EH3:EH4) -> 0 | EI5: =IF(EH$2=0,0,EH5/EH$2) -> 0 | FB5: 0 | FC5: 0
CU6: Funds Remaining | CV6: =CV2-CV5 -> 0 | CW6: =CW2-CW5 -> 0 | CX6: =1-SUM(CX3:CX4) -> 1 | EG6: Funds Remaining | EH6: =EH2-EH5 -> 0 | EI6: =IF(EH$2=0,0,EH6/EH$2) -> 0 | FB6: 1 | FC6: 0,1
DK7: EX-IV Cap | DZ7: Rating Threshold | EA7: 3.5 | EC7: =MaxShares -> 0.1 | ED7: Share Increment | FB7: 2 | FC7: 0,2
A8: Employees: | B8: =COUNTA(EmployeeID) -> 0 | BV8: Bonus | DK8: =EXIVCap -> 191900 | EL8: SQI/DQI Funds | EM8: =QI_Budget -> 0 | FB8: 3 | FC8: 0,1,2
A9: Visible Employees: | B9: =SUBTOTAL(3,EmployeeID) -> 0 | AU9: Mean | AV9: Mean | AW9: Mean | AX9: Mode | BE9: =CONCATENATE("Floor = ", TEXT(Floor_GPI_Funding,"0.00%")) -> Floor = 1.00% | BV9: Share Valve | CJ9: Adj Funding | CK9: Total Adjustments | CL9: Remaining Adjustment Funding | DC9: Sum of Increases: | DD9: =SUM(DD12:DD13) -> 0 | EC9: Share Value | EE9: Adj Funding | EF9: Total Adjustments | EG9: Remaining Adjustment Funding | EL9: Remaining | EM9: =QI_Budget-SUM(EM12:EM13) -> 0
AU10: =IF(EmpCount=0,"",AVERAGE(IF(Rating>0,AU12:AU13))) ->  | AV10: =IF(EmpCount=0,"",AVERAGE(IF(Rating>0,AV12:AV13))) ->  | AW10: =IF(EmpCount=0,"",AVERAGE(IF(Rating>0,AW12:AW13))) ->  | AX10: =IF(ISNA(MODE(Rating)),"",MODE(Rating)) ->  | BV10: =IF(OR(SumBonusElig=0,'Hidden Sal Inc Rates'!G4=0),0,MAX(0,(BonInterimBudget)/SUMPRODUCT(BandMidpoints,PristineBonusSharesFinal)) ) -> 0 | CJ10: =Export_07 -> 0 | CK10: =SUM(SalIncAdj) -> 0 | CL10: =IF(SalAdjust<=0,CJ10,CJ10-CK10) -> 0 | DC10: Developmental/Promotion/TSA Increases | DL10: =LEFT('Pay Bands'!D128,SEARCH(" ",'Pay Bands'!D128,1)-1) -> 2025 | DM10: =LEFT('Pay Bands'!D128,SEARCH(" ",'Pay Bands'!D128,1)-1) -> 2025 | DN10: =LEFT('Pay Bands'!D128,SEARCH(" ",'Pay Bands'!D128,1)-1) -> 2025 | EC10: =BonusShareValue -> 0 | EE10: =BonSetAsideDollar -> 0 | EF10: =SUM(BonAdj) -> 0 | EG10: =IF(BonAdjust<=0,EE10,EE10-EF10) -> 0
A11: Last Name | B11: First Name | C11: Employee ID | D11: Evaluation ID | E11: Pay Pool ID | F11: Specially Situated Condition | G11: Include in Salary Incr. Fund Calcs? | H11: Include in Bonus Fund Calcs? | I11: Salary Incr. Eligible? | J11: Bonus Eligible? | K11: Org ID 1 | L11: Org ID 2 | M11: Agency Group | N11: JDA Status | O11: Rating Cycle End Date | P11: Last Incr. Date | Q11: Date WGI Due | R11: Employee On Board Date (EOD) | S11: Band Entry Date | T11: Retained Pay | U11: Pay Plan (end of Evaluation Period) | V11: Pay Band (end of Evaluation Period) | W11: Base Salary (end of Evaluation Period) | X11: LMS or TMS (end of Evaluation Period) | Y11: Total Basic (end of Evaluation Period) | Z11: Pay Plan (as of Extract Date) | AA11: Pay Band (as of Extract date) | AB11: Step (as of Extract Date) | AC11: Base Salary (as of Extract date) | AD11: % Incr. (column AC versus W) | AE11: Work Category | AF11: Occ Series | AG11: Position/Work Role Title | AH11: Work Level | AI11: Work Location | AJ11: Geolocation Code | AK11: Locality Code | AL11: Locality Rate | AM11: Work Schedule | AN11: Employee Status | AO11: Rating Official | AP11: Reviewing Official | AQ11: Pay Pool Manager | AR11: Performance Review Authority | AS11: Wildcard 1 | AU11: Objective Rating | AV11: Element Rating | AW11: Overall Rating | AX11: Evaluation of Record | AY11: Rating Description | AZ11: Wildcard 2 | BA11: Wildcard 3 | BC11: Base Salary (end of Evaluation Period) | BD11: End Cycle % in Band | BE11: Salary Incr. Floor ($) | BF11: Base Pay + Salary Incr. Floor | BG11: Initial Base Pay Incr. Rate | BH11: Midpoint | BI11: Variable Control Point | BJ11: Used Midpoint | BK11: End Cycle Compa Ratio | BL11: Multiplier | BM11: Preliminary Interim Base Pay Increase Shares | BN11: Preliminary Interim Base Pay Increase | BO11: Preliminary Interim New Base Pay (computed) | BP11: Preliminary Hit Max for Band? | BQ11: Preliminary Interim Base Pay Incr To Meet Max | BR11: Preliminary Interim Base Pay Increase above Max | BS11: Preliminary Final Base Pay Increase Shares | BT11: Preliminary Initial Performance Salary Incr $ | BU11: Preliminary Adjusted New Base Salary (computed) | BV11: Preliminary Bonus Shares | BW11: Preliminary Total Bonus ($) | BX11: Interim Base Pay Incr. Shares | BY11: Salary Shares Proration (%) | BZ11: Shares w/ Proration | CA11: Interim Base Pay Incr. | CB11: Interim New Base Pay (computed) | CC11: Pay Band Max | CD11: Hit Max for Band? | CE11: Interim Base Pay Incr. To Meet Max | CF11: Interim Base Pay Incr. above Max | CG11: Final Base Pay Incr. Shares | CH11: Initial Perf. Salary Incr. ($) | CI11: Initial Perf. Salary Incr. (%) | CJ11: Override Initial Incr. | CK11: Perf. Salary Incr. Adjustment | CL11: Perf. Salary Adjustment Justification | CM11: Wildcard 4 | CN11: Wildcard 5 | CO11: Max Salary Incr. | CP11: Base Salary (as of Extract date) | CQ11: Salary Incr. Floor | CR11: Adjusted New Base Salary (computed) | CS11: New Pay Band Max | CT11: Hit New Band Max? | CU11: Floor Salary Incr. ($) | CV11: Floor Salary Incr. (%) | CW11: Perf. Salary Incr. ($) | CX11: Perf. Salary Incr. (%) | CY11: Total Salary Incr. ($) (Includes Floor) | CZ11: Total Salary Incr. (%) (Includes Floor) | DA11: New Base Salary | DB11: =CONCATENATE(1+LEFT(Export_44,4)," % in Band") -> 2025 % in Band | DC11: Type of Incr. | DD11: Amount of Other Incr. ($) | DE11: New Pay Band | DF11: Pay Pool Notes (notes will NOT print on feedback form) | DG11: Wildcard 6 | DH11: Wildcard 7 | DI11: Pay Band Minimum | DJ11: Pay Band Maximum | DK11: New Increased Pay | DL11: LMS Rate | DM11: LMS Amount | DN11: Salary + LMS | DO11: Filler 1 | DP11: Filler 2 | DQ11: Filler 3 | DR11: Wildcard 8 | DS11: Wildcard 9 | DT11: Wildcard 10 | DV11: Awards Received This Rating Period | DW11: Total $ of Awards Received | DX11: Date of last QSI or Equiv | DY11: $ Amount of last QSI or Equiv | DZ11: Overall Rating | EA11: Bonus Shares | EB11: Bonus Share Proration (%) | EC11: Bonus Shares | ED11: Initial Bonus ($) | EE11: Override Initial Bonus | EF11: Bonus Adjustment ($) | EG11: Bonus Adjustment Justification | EH11: Total Bonus ($) | EI11: Total Bonus (% of Midpoint) | EJ11: Total Bonus (% of Base Salary) | EK11: SQI Eligible? | EL11: Number of Steps to Award | EM11: Estimated $ Amount of Award | EN11: Wildcard 11 | EO11: Wildcard 12 | EP11: Wildcard 13 | EQ11: Wildcard 14 | ER11: Pay Pool Panel Working Notes (these notes are for pay pool panel use only) | ES11: Remarks for Employee Feedback Form (these remarks will print on the employee's feedback form generated by the CWB) | ET11: Extract Date | EU11: Region Code | EV11: At Appraisal Lookup | EW11: At Appraisal Max | EX11: At Extract Lookup | EY11: At Extract Max uses Other Inc if entered | EZ11: For QSI lookup | FA11: QSI Increment | FB11: QSI Category | FC11: Band for New Year | FD11: Use in Salary Analysis | FE11: For Stats | FF11: Work Cat/Level | FG11: Perm Hidden | FH11: Keep this Blank
AD13: =IF(OR(LEN($A13)=0,$W13=""),"",IF($AC13<>W13,($AC13-$W13)/$W13,"")) ->  | AY13: =IF(LEN($A13)=0,"",IF(AX13=3,"Successful",IF(AX13=4,"Excellent",IF(AX13=5,"Outstanding",IF(AX13=2,"Min Successful",IF(AX13=1,"Unacceptable","No Rating")))))) ->  | BD13: =IF(OR(LEN($A13)=0,NOT(isNGAMode)),"",IF($CC13=0,0,($BC13-VLOOKUP($EV13,CurrentPayBands,2,FALSE))/(VLOOKUP($EV13,CurrentPayBands,4,FALSE)-VLOOKUP($EV13,CurrentPayBands,2,FALSE)))) ->  | BE13: =IF(OR(ISBLANK($A13),NOT(isNGAMode)),"",IF(BC13>CC13,0,CEILING(IF(AX13=1,0,1)*MIN($CC13-$BC13,Floor_GPI_Funding*$BC13),1))) ->  | BF13: =IF(OR(ISBLANK($A13),NOT(isNGAMode)),"",$BC13+$BE13) ->  | BG13: =IF(OR(LEN($A13)=0,NOT(isNGAMode)),"",IF(AX13<3,0,IF($T13="Yes",0, IF($I13="Yes",PayoutIncrement+PayoutIncrement*(AW13-LowRating)/RatingIncr,0)))) ->  | BH13: =IF(LEN($EV13)=0,"",VLOOKUP($EV13,Control_Points_Current,3,FALSE)) ->  | BJ13: =IF(LEN($A13)=0,"",IF($BI13>0,$BI13,$BH13)) ->  | BK13: =IF(OR(LEN($A13)=0,$BC13="", $BJ13=""),0,$BC13/$BJ13) -> 0 | BL13: =IF(OR(NOT(isNGAMode),LEN($A13)=0,$BK13=0),"",$BG13/$BK13) ->  | BM13: =IF(OR(NOT(isNGAMode),LEN($A13)=0),"",IF($I13="Yes",($BJ13*BL13)/1000,0)) ->  | BN13: =IF(OR(NOT(isNGAMode),LEN($A13)=0),"",IF($I13="Yes",TRUNC($BM13*PristineSalaryShareValue,0),0)) ->  | BO13: =IF(OR(NOT(isNGAMode),LEN($A13)=0),"",IF($I13="Yes",BF13+BN13,BC13)) ->  | BP13: =IF(OR(NOT(isNGAMode),LEN($A13)=0),"",IF($BO13<=($CC13-1),"No","Yes")) ->  | BQ13: =IF(OR(NOT(isNGAMode),LEN($A13)=0),"",IF(AX13>0,IF(BP13="Yes", MAX(CC13-BF13,0),0),0)) ->  | BR13: =IF(OR(NOT(isNGAMode),LEN($A13)=0),"",IF(AX13>0,IF($BP13="Yes", BO13-CC13,0),0)) ->  | BS13: =IF(OR(NOT(isNGAMode),LEN($A13)=0),"",IF($I13="Yes",IF(BR13=0,BM13,0),0)) ->  | BT13: =IF(PristineFinalCalcShareValue<0,0,IF(OR(NOT(isNGAMode),LEN($A13)=0),"",IF(I13="Yes",IF(BQ13=0,TRUNC(BS13*PristineFinalCalcShareValue,0),BQ13),0))) ->  | BU13: =IF(OR(NOT(isNGAMode),LEN($A13)=0),"",CP13+CQ13+BT13) ->  | BV13: =IF(LEN($A13)=0,"",IF(J13="Yes",IF(DZ13>=BonusThreshold,VLOOKUP(DZ13,BonusShareLookup,2,FALSE),""),"")) ->  | BW13: =IF(LEN($A13)=0,"",IFERROR(TRUNC(BH13*BV13*PristineBonusShareValue,0),0)) ->  | BX13: =IF(OR(NOT(isNGAMode),LEN($A13)=0),"",IF($I13="Yes",IF(CJ13="Yes",0,IF(OR($BJ13="",$BL13=""),0,($BJ13*BL13)/1000)),0)) ->  | BZ13: =IF(OR(NOT(isNGAMode),LEN($A13)=0),"",IF($BY13<>"",$BX13*$BY13,BX13)) ->  | CA13: =IF(OR(NOT(isNGAMode),LEN($A13)=0),"",IF($I13="Yes",TRUNC($BZ13*SalaryShareValue,0),0)) ->  | CB13: =IF(OR(NOT(isNGAMode),LEN($A13)=0),"",IF($I13="Yes",BF13+CA13,BC13)) ->  | CC13: =IF(OR(NOT(isNGAMode),LEN($A13)=0),"",$EW13) ->  | CD13: =IF(OR(NOT(isNGAMode),LEN($A13)=0),"",IF($T13="Yes","No",IF($CB13<=($CC13-1),"No","Yes"))) ->  | CE13: =IF(OR(NOT(isNGAMode),LEN($A13)=0),"",IF(AX13>0,IF(CD13="Yes", MAX(CC13-BF13,0),0),0)) ->  | CF13: =IF(OR(NOT(isNGAMode),LEN($A13)=0),"",IF(AX13>0,IF(AND($CD13="Yes",T13<>"Yes"), CB13-CC13,0),0)) ->  | CG13: =IF(OR(NOT(isNGAMode),LEN($A13)=0),"",IF($I13="Yes",IF(CF13=0,BZ13,0),0)) ->  | CH13: =IF(FinalCalcShareValue<0,0,IF(OR(NOT(isNGAMode),LEN($A13)=0),"",IF(I13="Yes",IF(CE13=0,TRUNC(CG13*FinalCalcShareValue,0),CE13),0))) ->  | CI13: =IF(OR(LEN($A13)=0,$BC13="",NOT(isNGAMode)),"",$CH13/$BC13) ->  | CO13: =IF(OR(NOT(isNGAMode),LEN($A13)=0),"",MAX(0,CC13-BF13)) ->  | CQ13: =IF(OR(NOT(isNGAMode),ISBLANK($Y13)),0,IF(CP13>CS13,0,CEILING(MIN($CS13-$CP13,Floor_GPI_Funding*$CP13),1))) -> 0 | CR13: =IF(OR(NOT(isNGAMode),LEN($Y13)=0),"",CP13+CQ13+CH13+CK13) ->  | CS13: =IF(LEN($Y13)=0,"",$EY13) ->  | CT13: =IF(OR(NOT(isNGAMode),LEN($Y13)=0),"",IF($CR13<=($CS13),"No",IF($T13="Yes","No","Yes"))) ->  | CU13: =CQ13 -> 0 | CV13: =IF(LEN($Y13)=0,0,CU13/CP13) -> 0 | CW13: =IF(OR(NOT(isNGAMode),LEN($A13)=0),0,IF(CT13="Yes",(CS13-CP13),(CH13+CK13))) -> 0 | CX13: =IF(OR(NOT(isNGAMode),LEN($A13)=0,$BC13=""),0,ROUND($CW13/$BC13,4)) -> 0 | CY13: =IF(OR(NOT(isNGAMode),LEN($Y13))=0,0,CU13+CW13) -> 0 | CZ13: =IF(OR(NOT(isNGAMode),LEN($Y13)=0),0,CY13/CP13) -> 0 | DA13: =IF(OR(NOT(isNGAMode),LEN($Y13)=0),0,CR13) -> 0 | DB13: =IF(OR(NOT(isNGAMode),LEN($Y13)=0),"",IF(CC13=0,0,(DK13-VLOOKUP(FC13,Control_Points_New,2,FALSE)))/(VLOOKUP(FC13,Control_Points_New,4,FALSE)-VLOOKUP(FC13,Control_Points_New,2,FALSE))) ->  | DI13: =IF(LEN($Y13)=0,"",VLOOKUP(FC13,Control_Points_New,2,FALSE)) ->  | DJ13: =IF(DE13=0,EY13,VLOOKUP(FC13,Control_Points_New,4,FALSE)) -> 0 | DK13: =IF(isNGAMode,SUM(AC13,CU13,CW13,DD13),$DA13) -> 0 | DL13: =IF(AND(isNGAMode,$AX13=1),IF(ISNA(VLOOKUP($AK13,LocTable,3,FALSE)),0,VLOOKUP($AK13,LocTable,3,FALSE)),IF(ISNA(VLOOKUP($AK13,LocTable,4,FALSE)),0,VLOOKUP($AK13,LocTable,4,FALSE))) -> 0 | DM13: =MAX(0,$DN13-$DK13) -> 0 | DN13: =IF(LEN($Y13)=0,0,IF(UPPER($T13)="YES",$DK13,MIN($DK$8,ROUND($DK13*(100+DL13)/100,0)))) -> 0 | DZ13: =IF(LEN($A13)=0,"",$AW13) ->  | EA13: =IF(OR(LEN($A13)=0,$U13="GS"),"",IF(J13="Yes",IF(EE13="Yes","",IF(DZ13>=BonusThreshold,VLOOKUP(DZ13,BonusShareLookup,2,FALSE),"")),"")) ->  | EC13: =IF(OR(LEN($A13)=0,LEN($EA13)=0),"",IF($EB13<>"",$EB13*$EA13,EA13)) ->  | ED13: =IF(LEN($EC13)=0,"",TRUNC(BH13*EC13*BonusShareValue,0)) ->  | EH13: =SUM(EF13,ED13) -> 0 | EI13: =IF(OR(LEN($A13)=0,$BH13=""),0,ROUND($EH13/$BH13,4)) -> 0 | EJ13: =IF(OR(LEN($H13)=0,$BC13=""),0,ROUND($EH13/$BC13,4)) -> 0 | EM13: =IF(LEN($A13)=0,"",EL13*FA13) ->  | EV13: =IF(LEN(U13)=0,"",IF(OR(isNGAMode,IFERROR(FIND(U13,"IA.PI"),0)>0),CONCATENATE(U13,V13),CONCATENATE("IA",VLOOKUP(CONCATENATE(AE13,AH13),CatLevel,2,FALSE)))) ->  | EW13: =IF($EV13="",0,VLOOKUP($EV13,Control_Points_New,4,FALSE)) -> 0 | EX13: =IF(isNGAMode,CONCATENATE(Z13,AA13),EV13) ->  | EY13: =IF(isNGAMode,IFERROR(VLOOKUP(EX13,Control_Points_New,4,FALSE),0),IFERROR(VLOOKUP(EZ13,Control_Points_New,4,FALSE),0)) -> 0 | EZ13: =CONCATENATE(Z13,AA13) ->  | FA13: =IF(isNGAMode,0,IF(LEFT(EZ13,2)="GS",0,VLOOKUP(EZ13,Control_Points_New,5,FALSE))) ->  | FB13: =IF(OR(isNGAMode,T13="Yes",AW13<2.6,U13="GS"),0,IF(SUM(AC13,2*FA13)<=EY13,3,IF(SUM(AC13,FA13)<=EY13,1,0))) -> 0 | FC13: =IF(LEN($C13)=0,"",IF($DE13=0,CONCATENATE($Z13,$AA13),CONCATENATE($Z13,$DE13))) ->  | FD13: =IF(T13="Yes",0,IF(UPPER(I13)<>"YES",0,IF(AX13>=1,1,0))) -> 0 | FE13: =IF(OR(U13="",ISERR(FIND(U13,"GG.IA.PI.PP",1))),"",CONCATENATE(U13,"-",TEXT(V13,"00"))) ->  | FF13: =IF(ISBLANK($A13),"",CONCATENATE(IF(UPPER($AE13)="T","Tech/Admin",IF(UPPER($AE13)="P","Prof",IF(UPPER($AE13)="S","Super/Mgmt","Other")))," - ",IF($AH13=1,"Entry",IF($AH13=2,"Full Perf.",IF($AH13=3,"Senior",IF($AH13=4,"Expert",$AH13)))))) -> 
G14: X | I14: X | AQ14: X | AR14: X | BB14: X | BC14: X | BD14: X | BE14: X | BF14: X | BG14: X | BH14: X | BI14: X | BJ14: X | BK14: X | BL14: X | BM14: X | BN14: X | BO14: X | BP14: X | BQ14: X | BR14: X | BS14: X | BT14: X | BU14: X | BV14: X | BW14: X | BX14: X | BY14: X | BZ14: X | CA14: X | CB14: X | CC14: X | CD14: X | CE14: X | CF14: X | CG14: X | CH14: X | CI14: X | CJ14: X | CK14: X | CL14: X | CO14: X | CP14: X | CQ14: X | CR14: X | CS14: X | CT14: X | CU14: X | CV14: X | CW14: X | CX14: X | CY14: X | CZ14: X | DA14: X | DB14: X | DC14: X | DD14: X | DE14: X | DF14: X | DI14: X | DJ14: X | DK14: X | DL14: X | DM14: X | DN14: X | DO14: X | DP14: X | DQ14: X | ET14: X | EU14: X | EV14: X | EW14: X | EX14: X | EY14: X | EZ14: X | FA14: X | FB14: X | FC14: X | FD14: X | FE14: X | FF14: X | FG14: X | FH14: X | FI14: nonNGA_Hide
AB15: X | AQ15: X | AR15: X | BM15: X | BN15: X | BO15: X | BP15: X | BQ15: X | BR15: X | BS15: X | BT15: X | BU15: X | BV15: X | BW15: X | DO15: X | DP15: X | DQ15: X | DX15: X | DY15: X | EK15: X | EL15: X | EM15: X | ET15: X | EU15: X | EV15: X | EW15: X | EX15: X | EY15: X | EZ15: X | FA15: X | FB15: X | FC15: X | FD15: X | FE15: X | FF15: X | FG15: X | FH15: X | FI15: NGA_Hide
A17: Remove X in this row to hide columns | C17: X | D17: X | E17: X | F17: X | H17: X | J17: X | K17: X | L17: X | M17: X | N17: X | O17: X | P17: X | Q17: X | R17: X | S17: X | T17: X | U17: X | V17: X | W17: X | X17: X | Y17: X | Z17: X | AA17: X | AB17: X | AC17: X | AD17: X | AE17: X | AF17: X | AG17: X | AH17: X | AI17: X | AJ17: X | AK17: X | AL17: X | AM17: X | AN17: X | AO17: X | AP17: X | AQ17: X | AR17: X | AS17: X | AT17: X | AU17: X | AV17: X | AW17: X | AX17: X | AY17: X | AZ17: X | BA17: X | BB17: X | BM17: X | BN17: X | BO17: X | BP17: X | BQ17: X | BR17: X | BS17: X | BT17: X | BU17: X | BV17: X | BW17: X | CM17: X | DO17: X | DP17: X | DQ17: X | DR17: X | DS17: X | DT17: X | DU17: X
A18: Yes
A19: No
A22: =SUM($AX12:$AX13) -> 0 | DA22: X
A24: 292 | B24: FALSE
B25: =IF(isNGAMode,"Pay Band","Grade") -> Grade
FB29: 0 | FC29: 0
FB30: 1 | FC30: 2
FB31: 2

Sheet Bonus Adjustment Summary
A3: Last Name | B3: First Name | C3: Employee ID | D3: Overall Rating | E3: Bonus Prorated? | F3: Bonus Overridden? | G3: Bonus Adjusted? | H3: Bonus Adjustment Justification | I3: Emp Rownum | J3: Perm Hidden
J4: =IF(ISBLANK($A4),"",SUBSTITUTE(VLOOKUP($C4,'Pay Pool Panel'!$C$12:$FH$13,MATCH(J$3,'Pay Pool Panel'!$C$11:$FH$11,0),FALSE),"0","")) -> 
D5: =INDEX(AverageRating,I5,1) ->  | E5: =IF(INDEX(BonShareProPct,I5,1)<>0,"Yes","") ->  | F5: =IF(INDEX(BonusOverride,I5,1)="Yes","Yes","") ->  | G5: =IF(INDEX(BonAdj,I5,1)=0,"","Yes") ->  | H5: =IF(INDEX(BonAdjJust,I5,1)=0,"",INDEX(BonAdjJust,I5,1)) ->  | I5: =MATCH(C5,EmployeeID,0) ->  | J5: =IF(ISBLANK($A5),"",SUBSTITUTE(VLOOKUP($C5,'Pay Pool Panel'!$C$12:$FH$13,MATCH(J$3,'Pay Pool Panel'!$C$11:$FH$11,0),FALSE),"0","")) -> 

Sheet Pay Bands
B1: =CONCATENATE(Cycle," Pay Band Information") -> 2024 Pay Band Information | G1: =CONCATENATE(Cycle+1," Pay Band Information") -> 2025 Pay Band Information | P1: =CONCATENATE(Cycle+0," version") -> 2024 version | V1: =CONCATENATE(Cycle+1," version") -> 2025 version | Z1: Max or | AB1: For IA and GG
P2: Grade | R2: OPM Base | S2: Increment | T2: Step12 | V2: Grade | X2: Base | Y2: Increment | Z2: Step12 | AC2: Bands
B3: Pay Band | C3: Minimum | D3: Midpoint | E3: Maximum | G3: Pay Band | H3: Minimum | I3: Midpoint | J3: Maximum | K3: Increment | L3: Min RR | M3: GPI | N3: New EXIVCap | O3: Old EXIVCap | P3: 1 | R3: 21986 | V3: 1 | X3: =ROUND(R3*(1+GPI),0) -> 22206 | AC3: PayTableGrade | AE3: =Cycle+1 -> 2025 | AG3: =Cycle+2 -> 2026
B4: IA1 | C4: 21986 | D4: =ROUND(SUM(C4,E4)/2,0) -> 39671 | E4: 57355 | F4: Banded Systems | G4: IA1 | H4: 22206 | I4: =ROUND(SUM(H4,J4)/2,0) -> 40068 | J4: 57929 | L4: =GPI -> 0.01 | M4: 0.01 | N4: 191900 | O4: 183500 | P4: 2 | R4: 24722 | V4: 2 | X4: 24969 | AB4: Pay Band | AC4: Min | AD4: Max | AE4: Minimum | AF4: Maximum | AG4: Minimum | AH4: Maximum
B5: IA2 | C5: 41966 | D5: 59609 | E5: 77252 | G5: IA2 | H5: 42386 | I5: 60206 | J5: 78026 | P5: 3 | R5: 26975 | S5: 899 | T5: 36864 | V5: 3 | X5: 27245 | Y5: =ROUND(X5/30,0) -> 908 | Z5: =X5+11*Y5 -> 37233 | AB5: 1 | AC5: 1 | AD5: 7 | AE5: =VLOOKUP($AC5,OldGSTable,3) -> 21986 | AF5: =VLOOKUP($AD5,OldGSTable,5) -> 57355 | AG5: =VLOOKUP($AC5,NewGSTable,3) -> 22206 | AH5: =VLOOKUP($AD5,NewGSTable,5) -> 57929
B6: IA3 | C6: 62107 | D6: 91544 | E6: 120981 | G6: IA3 | H6: 62728 | I6: 92457 | J6: 122185 | P6: 4 | R6: 30280 | S6: =ROUND(R6/30,0) -> 1009 | T6: 41379 | V6: 4 | X6: 30583 | Y6: =ROUND(X6/30,0) -> 1019 | Z6: =X6+11*Y6 -> 41792 | AB6: 2 | AC6: 7 | AD6: 10 | AE6: =VLOOKUP($AC6,OldGSTable,3) -> 41966 | AF6: =VLOOKUP($AD6,OldGSTable,5) -> 77252 | AG6: =VLOOKUP($AC6,NewGSTable,3) -> 42386 | AH6: =VLOOKUP($AD6,NewGSTable,5) -> 78026
B7: IA4 | C7: 88520 | D7: 115741 | E7: 142961 | G7: IA4 | H7: 89405 | I7: 116899 | J7: 144392 | P7: 5 | R7: 33878 | S7: 1129 | T7: 46297 | V7: 5 | X7: 34217 | Y7: 1141 | Z7: 46768 | AB7: 3 | AC7: 11 | AD7: 13 | AE7: =VLOOKUP($AC7,OldGSTable,3) -> 62107 | AF7: =VLOOKUP($AD7,OldGSTable,5) -> 120981 | AG7: =VLOOKUP($AC7,NewGSTable,3) -> 62728 | AH7: =VLOOKUP($AD7,NewGSTable,5) -> 122185
B8: IA5 | C8: 123041 | D8: 145597 | E8: 168152 | G8: IA5 | H8: 124271 | I8: 147052 | J8: 169833 | P8: 6 | R8: 37765 | S8: 1259 | T8: 51614 | V8: 6 | X8: 38143 | Y8: 1271 | Z8: 52124 | AB8: 4 | AC8: 13 | AD8: 14 | AE8: =VLOOKUP($AC8,OldGSTable,3) -> 88520 | AF8: =VLOOKUP($AD8,OldGSTable,5) -> 142961 | AG8: =VLOOKUP($AC8,NewGSTable,3) -> 89405 | AH8: =VLOOKUP($AD8,NewGSTable,5) -> 144392
B9: PI1 | C9: =AE35 -> 40309 | D9: 50384 | E9: =AF35 -> 60459 | G9: PI1 | H9: 40712 | I9: 50891 | J9: =AH35 -> 61070 | P9: 7 | R9: 41966 | S9: 1399 | T9: 57355 | V9: 7 | X9: 42386 | Y9: 1413 | Z9: 57929 | AB9: 5 | AC9: 15 | AD9: 15 | AE9: =VLOOKUP($AC9,OldGSTable,3) -> 123041 | AF9: =VLOOKUP($AD9,OldGSTable,5) -> 168152 | AG9: =VLOOKUP($AC9,NewGSTable,3) -> 124271 | AH9: =VLOOKUP($AD9,NewGSTable,5) -> 169833
B10: PI2 | C10: =AE36 -> 44461 | D10: =ROUND(SUM(C10,E10)/2,0) -> 55576 | E10: =AF36 -> 66691 | G10: PI2 | H10: 44906 | I10: =ROUND(SUM(H10,J10)/2,0) -> 56132 | J10: =AH36 -> 67357 | P10: 8 | R10: 46475 | S10: 1549 | T10: 63514 | V10: 8 | X10: 46940 | Y10: 1565 | Z10: 64155
B11: PI3 | C11: 49041 | D11: 61300 | E11: 73559 | G11: PI3 | H11: 49531 | I11: 61914 | J11: 74296 | P11: 9 | R11: 51332 | S11: 1711 | T11: 70153 | V11: 9 | X11: 51845 | Y11: 1728 | Z11: 70853 | AC11: Grades
B12: PI4 | C12: 54092 | D12: 67612 | E12: 81132 | G12: PI4 | H12: 54633 | I12: 68290 | J12: 81946 | P12: 10 | R12: 56528 | S12: 1884 | T12: 77252 | V12: 10 | X12: 57093 | Y12: 1903 | Z12: 78026 | AC12: PayTableGrade | AE12: =AE3 -> 2025 | AG12: =AG3 -> 2026
B13: PI5 | C13: 59663 | D13: 74581 | E13: 89498 | G13: PI5 | H13: 60260 | I13: 75327 | J13: 90394 | P13: 11 | R13: 62107 | S13: 2070 | T13: 84877 | V13: 11 | X13: 62728 | Y13: 2091 | Z13: 85729 | AB13: Pay Band | AC13: Min | AD13: Max | AE13: Minimum | AF13: Maximum | AG13: Minimum | AH13: Maximum
B14: PI6 | C14: 65809 | D14: 82261 | E14: 98712 | G14: PI6 | H14: 66467 | I14: 83081 | J14: 99695 | P14: 12 | R14: 74441 | S14: 2481 | T14: 101732 | V14: 12 | X14: 75185 | Y14: 2506 | Z14: 102751 | AB14: 1 | AC14: 1 | AD14: 1 | AE14: =VLOOKUP($AC14,OldGSTable,3) -> 21986 | AF14: =VLOOKUP($AD14,OldGSTable,5) -> 0 | AG14: =VLOOKUP($AC14,NewGSTable,3) -> 22206 | AH14: =VLOOKUP($AD14,NewGSTable,5) -> 0
B15: PI7 | C15: 72587 | D15: 90735 | E15: 108883 | G15: PI7 | H15: 73313 | I15: 91643 | J15: 109973 | P15: 13 | R15: 88520 | S15: =ROUND(R15/30,0) -> 2951 | T15: 120981 | V15: 13 | X15: 89405 | Y15: =ROUND(X15/30,0) -> 2980 | Z15: 122185 | AB15: 2 | AC15: 2 | AD15: 2 | AE15: 24722 | AF15: 0 | AG15: 24969 | AH15: 0
B16: PI8 | C16: 88136 | D16: 104295 | E16: 120454 | G16: PI8 | H16: 89017 | I16: 105336 | J16: 121654 | P16: 14 | R16: 104604 | S16: =ROUND(R16/30,0) -> 3487 | T16: 142961 | V16: 14 | X16: 105650 | Y16: =ROUND(X16/30,0) -> 3522 | Z16: 144392 | AB16: 3 | AC16: 3 | AD16: 3 | AE16: 26975 | AF16: 36864 | AG16: 27245 | AH16: 37233
B17: PI9 | C17: 103672 | D17: 122680 | E17: 141688 | G17: PI9 | H17: 104709 | I17: 123904 | J17: 143099 | P17: 15 | R17: 123041 | S17: =ROUND(R17/30,0) -> 4101 | T17: 168152 | V17: 15 | X17: 124271 | Y17: =ROUND(X17/30,0) -> 4142 | Z17: 169833 | AB17: 4 | AC17: 4 | AD17: 4 | AE17: 30280 | AF17: 41379 | AG17: 30583 | AH17: 41792
B18: GG1 | C18: 21986 | D18: =ROUND(SUM(C18,E18)/2,0) -> 25473 | E18: 28960 | F18: Graded Systems - eligible for the DQI/SQI so increment needed | G18: GG1 | H18: 22206 | I18: =ROUND(SUM(H18,J18)/2,0) -> 25728 | J18: 29250 | AB18: 5 | AC18: 5 | AD18: 5 | AE18: 33878 | AF18: 46297 | AG18: 34217 | AH18: 46768
B19: GG2 | C19: 24722 | D19: =ROUND(SUM(C19,E19)/2,0) -> 28716 | E19: 32710 | G19: GG2 | H19: 24969 | I19: 29003 | J19: 33037 | AB19: 6 | AC19: 6 | AD19: 6 | AE19: 37765 | AF19: 51614 | AG19: 38143 | AH19: 52124
B20: GG3 | C20: 26975 | D20: 31920 | E20: 36864 | G20: GG3 | H20: 27245 | I20: 32239 | J20: 37233 | K20: =Y5 -> 908 | AB20: 7 | AC20: 7 | AD20: 7 | AE20: 41966 | AF20: 57355 | AG20: 42386 | AH20: 57929
B21: GG4 | C21: 30280 | D21: 35830 | E21: 41379 | G21: GG4 | H21: 30583 | I21: 36188 | J21: 41792 | K21: 1019 | AB21: 8 | AC21: 8 | AD21: 8 | AE21: 46475 | AF21: 63514 | AG21: 46940 | AH21: 64155
B22: GG5 | C22: 33878 | D22: 40088 | E22: 46297 | G22: GG5 | H22: 34217 | I22: 40493 | J22: 46768 | K22: 1141 | AB22: 9 | AC22: 9 | AD22: 9 | AE22: =VLOOKUP($AC22,OldGSTable,3) -> 51332 | AF22: =VLOOKUP($AD22,OldGSTable,5) -> 70153 | AG22: =VLOOKUP($AC22,NewGSTable,3) -> 51845 | AH22: =VLOOKUP($AD22,NewGSTable,5) -> 70853
B23: GG6 | C23: 37765 | D23: 44690 | E23: 51614 | G23: GG6 | H23: 38143 | I23: 45134 | J23: 52124 | K23: 1271 | AB23: 10 | AC23: 10 | AD23: 10 | AE23: 56528 | AF23: 77252 | AG23: 57093 | AH23: 78026
B24: GG7 | C24: 41966 | D24: 49661 | E24: 57355 | G24: GG7 | H24: 42386 | I24: 50158 | J24: 57929 | K24: 1413 | P24: For Police PP/PI | AB24: 11 | AC24: 11 | AD24: 11 | AE24: 62107 | AF24: 84877 | AG24: 62728 | AH24: 85729
B25: GG8 | C25: 46475 | D25: 54995 | E25: 63514 | G25: GG8 | H25: 46940 | I25: 55548 | J25: 64155 | K25: 1565 | P25: =CONCATENATE(Cycle," version") -> 2024 version | V25: =CONCATENATE(Cycle+1," version") -> 2025 version | Z25: Max or | AB25: 12 | AC25: 12 | AD25: 12 | AE25: 74441 | AF25: 101732 | AG25: 75185 | AH25: 102751
B26: GG9 | C26: 51332 | D26: 60743 | E26: 70153 | G26: GG9 | H26: 51845 | I26: 61349 | J26: 70853 | K26: 1728 | P26: Grade | R26: OPM Base | S26: Increment | T26: Step14 | V26: Grade/Band | X26: Base | Y26: Increment | Z26: Step14 | AB26: 13 | AC26: 13 | AD26: 13 | AE26: 88520 | AF26: 120981 | AG26: 89405 | AH26: 122185
B27: GG10 | C27: 56528 | D27: 66890 | E27: 77252 | G27: GG10 | H27: 57093 | I27: 67560 | J27: 78026 | K27: 1903 | P27: 1 | R27: 40309 | S27: =ROUND(R27/26,0) -> 1550 | T27: =R27+13*S27 -> 60459 | U27: =CEILING(R27/26,1) -> 1551 | V27: 1 | X27: =ROUND(R27*(1+GPI),0) -> 40712 | Y27: =ROUND(X27/26,0) -> 1566 | Z27: =X27+13*Y27 -> 61070 | AB27: 14 | AC27: 14 | AD27: 14 | AE27: 104604 | AF27: 142961 | AG27: 105650 | AH27: 144392
B28: GG11 | C28: 62107 | D28: 73492 | E28: 84877 | G28: GG11 | H28: 62728 | I28: 74229 | J28: 85729 | K28: 2091 | P28: 2 | R28: 44461 | S28: =ROUND(R28/26,0) -> 1710 | T28: 66691 | U28: =CEILING(R28/26,1) -> 1711 | V28: 2 | X28: 44906 | Y28: =ROUND(X28/26,0) -> 1727 | Z28: 67357 | AB28: 15 | AC28: 15 | AD28: 15 | AE28: 123041 | AF28: 168152 | AG28: 124271 | AH28: 169833
B29: GG12 | C29: 74441 | D29: 88087 | E29: 101732 | G29: GG12 | H29: 75185 | I29: 88968 | J29: 102751 | K29: 2506 | P29: 3 | R29: 49041 | S29: 1886 | T29: 73559 | U29: 1887 | V29: 3 | X29: 49531 | Y29: 1905 | Z29: 74296
B30: GG13 | C30: 88520 | D30: 104751 | E30: 120981 | G30: GG13 | H30: 89405 | I30: 105795 | J30: 122185 | K30: 2980 | P30: 4 | R30: 54092 | S30: 2080 | T30: 81132 | U30: 2081 | V30: 4 | X30: 54633 | Y30: 2101 | Z30: 81946
B31: GG14 | C31: 104604 | D31: 123783 | E31: 142961 | G31: GG14 | H31: 105650 | I31: 125021 | J31: 144392 | K31: 3522 | P31: 5 | R31: 59663 | S31: 2295 | T31: 89498 | U31: 2295 | V31: 5 | X31: 60260 | Y31: 2318 | Z31: 90394 | AB31: For PI and PP
B32: GG15 | C32: 123041 | D32: 145597 | E32: 168152 | G32: GG15 | H32: 124271 | I32: 147052 | J32: 169833 | K32: 4142 | P32: 6 | R32: 65809 | S32: 2531 | T32: 98712 | U32: 2532 | V32: 6 | X32: 66467 | Y32: 2556 | Z32: 99695 | AC32: Bands
B33: PP1 | C33: =AE35 -> 40309 | D33: =ROUND(SUM(C33,E33)/2,0) -> 50384 | E33: =AF35 -> 60459 | G33: PP1 | H33: =AG48 -> 40712 | I33: 50891 | J33: =AH48 -> 61070 | K33: =Y27 -> 1566 | P33: 7 | R33: 72587 | S33: 2792 | T33: 108883 | U33: 2792 | V33: 7 | X33: 73313 | Y33: 2820 | Z33: 109973 | AC33: PayTableGrade | AE33: =Cycle+1 -> 2025 | AG33: =Cycle+2 -> 2026
B34: PP2 | C34: =AE36 -> 44461 | D34: =ROUND(SUM(C34,E34)/2,0) -> 55576 | E34: =AF36 -> 66691 | G34: PP2 | H34: =AG49 -> 44906 | I34: =ROUND(SUM(H34,J34)/2,0) -> 56132 | J34: =AH49 -> 67357 | K34: =Y28 -> 1727 | P34: 8 | R34: 88136 | S34: =ROUND(R34/30,0) -> 2938 | T34: =R34+11*S34 -> 120454 | U34: =CEILING(R34/30,1) -> 2938 | V34: 8 | X34: 89017 | Y34: =ROUND(X34/30,0) -> 2967 | Z34: =X34+11*Y34 -> 121654 | AB34: Pay Band | AC34: Min | AD34: Max | AE34: Minimum | AF34: Maximum | AG34: Minimum | AH34: Maximum
B35: PP3 | C35: 49041 | D35: 61300 | E35: 73559 | G35: PP3 | H35: 49531 | I35: 61914 | J35: 74296 | K35: 1905 | P35: 9 | R35: 103672 | S35: =ROUND(R35/30,0) -> 3456 | T35: =R35+11*S35 -> 141688 | U35: =CEILING(R35/30,1) -> 3456 | V35: 9 | X35: 104709 | Y35: =ROUND(X35/30,0) -> 3490 | Z35: =X35+11*Y35 -> 143099 | AB35: 1 | AC35: 1 | AD35: 1 | AE35: =VLOOKUP($AC35,OldPPTable,3) -> 40309 | AF35: =VLOOKUP($AD35,OldPPTable,5) -> 60459 | AG35: =VLOOKUP($AC35,NewPPTable,3) -> 40712 | AH35: =VLOOKUP($AD35,NewPPTable,5) -> 61070
B36: PP4 | C36: 54092 | D36: 67612 | E36: 81132 | G36: PP4 | H36: 54633 | I36: 68290 | J36: 81946 | K36: 2101 | T36: Yellow go to step 12 only and WGI is based on 30 increments not 26 | AB36: 2 | AC36: 2 | AD36: 2 | AE36: 44461 | AF36: 66691 | AG36: 44906 | AH36: 67357
B37: PP5 | C37: 59663 | D37: 74581 | E37: 89498 | G37: PP5 | H37: 60260 | I37: 75327 | J37: 90394 | K37: 2318 | AB37: 3 | AC37: 3 | AD37: 3 | AE37: 49041 | AF37: 73559 | AG37: 49531 | AH37: 74296
B38: PP6 | C38: 65809 | D38: 82261 | E38: 98712 | G38: PP6 | H38: 66467 | I38: 83081 | J38: 99695 | K38: 2556 | AB38: 4 | AC38: 4 | AD38: 4 | AE38: 54092 | AF38: 81132 | AG38: 54633 | AH38: 81946
B39: PP7 | C39: 72587 | D39: 90735 | E39: 108883 | G39: PP7 | H39: 73313 | I39: 91643 | J39: 109973 | K39: 2820 | AB39: 5 | AC39: 5 | AD39: 5 | AE39: 59663 | AF39: 89498 | AG39: 60260 | AH39: 90394
B40: PP8 | C40: 88136 | D40: 104295 | E40: 120454 | G40: PP8 | H40: 89017 | I40: 105336 | J40: 121654 | K40: 2967 | AB40: 6 | AC40: 6 | AD40: 6 | AE40: 65809 | AF40: 98712 | AG40: 66467 | AH40: 99695
B41: PP9 | C41: 103672 | D41: 122680 | E41: 141688 | G41: PP9 | H41: 104709 | I41: 123904 | J41: 143099 | K41: 3490 | AB41: 7 | AC41: 7 | AD41: 7 | AE41: 72587 | AF41: 108883 | AG41: 73313 | AH41: 109973
AB42: 8 | AC42: 8 | AD42: 8 | AE42: 88136 | AF42: 120454 | AG42: 89017 | AH42: 121654
AB43: 9 | AC43: 9 | AD43: 9 | AE43: 103672 | AF43: 141688 | AG43: 104709 | AH43: 143099
AC45: Grades
AC46: PayTableGrade | AE46: =AE33 -> 2025 | AG46: =AG33 -> 2026
AB47: Pay Band | AC47: Min | AD47: Max | AE47: Minimum | AF47: Maximum | AG47: Minimum | AH47: Maximum
AB48: 1 | AC48: 1 | AD48: 1 | AE48: =VLOOKUP($AC48,OldPPTable,3) -> 40309 | AF48: =VLOOKUP($AD48,OldPPTable,5) -> 60459 | AG48: =VLOOKUP($AC48,NewPPTable,3) -> 40712 | AH48: =VLOOKUP($AD48,NewPPTable,5) -> 61070
AB49: 2 | AC49: 2 | AD49: 2 | AE49: 44461 | AF49: 66691 | AG49: 44906 | AH49: 67357
AB50: 3 | AC50: 3 | AD50: 3 | AE50: 49041 | AF50: 73559 | AG50: 49531 | AH50: 74296
AB51: 4 | AC51: 4 | AD51: 4 | AE51: 54092 | AF51: 81132 | AG51: 54633 | AH51: 81946
AB52: 5 | AC52: 5 | AD52: 5 | AE52: 59663 | AF52: 89498 | AG52: 60260 | AH52: 90394
AB53: 6 | AC53: 6 | AD53: 6 | AE53: 65809 | AF53: 98712 | AG53: 66467 | AH53: 99695
AB54: 7 | AC54: 7 | AD54: 7 | AE54: 72587 | AF54: 108883 | AG54: 73313 | AH54: 109973
AB55: 8 | AC55: 8 | AD55: 8 | AE55: 88136 | AF55: 120454 | AG55: 89017 | AH55: 121654
AB56: 9 | AC56: 9 | AD56: 9 | AE56: 103672 | AF56: 141688 | AG56: 104709 | AH56: 143099
U65: 1yr Back | V65: 2014-01-12
U66: 2yr Back | V66: 2013-01-13
S68: Lookup for the DQI/SQI columns
S69: amount of award | T69: means they got this many steps | U69: at this grade | V69: If before this date | W69: then eligible for this step
P70: Cat/Level | Q70: IA Band
P71: T1 | Q71: 1 | T71: 0 | U71: 0 | W71: 3
P72: T2 | Q72: 2 | S72: 0 | T72: 0 | U72: 0 | W72: 3 | Y72: No longer utilized
P73: T3 | Q73: 3 | R73: 2014 | S73: 735 | T73: 1 | U73: 3 | V73: =INDEX(yrs,T73) -> 2014-01-12 | W73: =IF(T73=1,2,1) -> 2
P74: P1 | Q74: 2 | R74: 2015 | S74: 743 | T74: 1 | U74: 3 | V74: 2014-01-12 | W74: =IF(T74=1,2,1) -> 2
P75: P2 | Q75: 3 | R75: 2014 | S75: 825 | T75: 1 | U75: 4 | V75: 2014-01-12 | W75: 2
P76: P3 | Q76: 4 | R76: 2015 | S76: 834 | T76: 1 | U76: 4 | V76: 2014-01-12 | W76: 2
P77: P4 | Q77: 5 | R77: 2014 | S77: 924 | T77: 1 | U77: 5 | V77: 2014-01-12 | W77: 2
P78: S2 | Q78: 3 | R78: 2015 | S78: 933 | T78: 1 | U78: 5 | V78: 2014-01-12 | W78: 2
P79: S3 | Q79: 4 | R79: 2014 | S79: 1029 | T79: 1 | U79: 6 | V79: 2014-01-12 | W79: 2
P80: S4 | Q80: 5 | R80: 2015 | S80: 1040 | T80: 1 | U80: 6 | V80: 2014-01-12 | W80: 2
R81: 2014 | S81: 1144 | T81: 1 | U81: 7 | V81: 2014-01-12 | W81: 2
R82: 2015 | S82: 1155 | T82: 1 | U82: 7 | V82: 2014-01-12 | W82: 2
R83: 2014 | S83: 1267 | T83: 1 | U83: 8 | V83: 2014-01-12 | W83: 2
R84: 2015 | S84: 1280 | T84: 1 | U84: 8 | V84: 2014-01-12 | W84: 2
R85: 2014 | S85: 1399 | T85: 1 | U85: 9 | V85: 2014-01-12 | W85: 2
R86: 2015 | S86: 1413 | T86: 1 | U86: 9 | V86: 2014-01-12 | W86: 2
R87: 2014 | S87: 1470 | T87: 2 | U87: 3 | V87: 2013-01-13 | W87: 1
R88: 2015 | S88: 1486 | T88: 2 | U88: 3 | V88: 2013-01-13 | W88: 1
R89: 2014 | S89: 1541 | T89: 1 | U89: 10 | V89: 2014-01-12 | W89: 2
R90: 2015 | S90: 1556 | T90: 1 | U90: 10 | V90: 2014-01-12 | W90: 2
R91: 2014 | S91: 1650 | T91: 2 | U91: 4 | V91: 2013-01-13 | W91: 1
R92: 2015 | S92: 1668 | T92: 2 | U92: 4 | V92: 2013-01-13 | W92: 1
R93: 2014 | S93: 1693 | T93: 1 | U93: 11 | V93: 2014-01-12 | W93: 2
R94: 2015 | S94: 1710 | T94: 1 | U94: 11 | V94: 2014-01-12 | W94: 2
R95: 2014 | S95: 1848 | T95: 2 | U95: 5 | V95: 2013-01-13 | W95: 1
R96: 2015 | S96: 1866 | T96: 2 | U96: 5 | V96: 2013-01-13 | W96: 1
R97: 2014 | S97: 2029 | T97: 1 | U97: 12 | V97: 2014-01-12 | W97: 2
R98: 2015 | S98: 2050 | T98: 1 | U98: 12 | V98: 2014-01-12 | W98: 2
R99: 2014 | S99: 2058 | T99: 2 | U99: 6 | V99: 2013-01-13 | W99: 1
R100: 2015 | S100: 2080 | T100: 2 | U100: 6 | V100: 2013-01-13 | W100: 1
R101: 2014 | S101: 2288 | T101: 2 | U101: 7 | V101: 2013-01-13 | W101: 1
R102: 2015 | S102: 2310 | T102: 2 | U102: 7 | V102: 2013-01-13 | W102: 1
R103: 2014 | S103: 2413 | T103: 1 | U103: 13 | V103: 2014-01-12 | W103: 2
R104: 2015 | S104: 2437 | T104: 1 | U104: 13 | V104: 2014-01-12 | W104: 2
R105: 2014 | S105: 2534 | T105: 2 | U105: 8 | V105: =INDEX(yrs,T105) -> 2013-01-13 | W105: 1
R106: 2015 | S106: 2560 | T106: 2 | U106: 8 | V106: 2013-01-13 | W106: 1
R107: 2014 | S107: 2798 | T107: 2 | U107: 9 | V107: 2013-01-13 | W107: 1
R108: 2015 | S108: 2826 | T108: 2 | U108: 9 | V108: 2013-01-13 | W108: 1
R109: 2014 | S109: 2851 | T109: 1 | U109: 14 | V109: 2014-01-12 | W109: 2
R110: 2015 | S110: 2880 | T110: 1 | U110: 14 | V110: 2014-01-12 | W110: 2
R111: 2014 | S111: 3082 | T111: 2 | U111: 10 | V111: 2013-01-13 | W111: 1
R112: 2015 | S112: 3112 | T112: 2 | U112: 10 | V112: 2013-01-13 | W112: 1
R113: 2014 | S113: 3354 | T113: 1 | U113: 15 | V113: 2014-01-12 | W113: 2
R114: 2014 | S114: 3386 | T114: 2 | U114: 11 | V114: 2013-01-13 | W114: 1
R115: 2015 | S115: 3388 | T115: 1 | U115: 15 | V115: 2014-01-12 | W115: 2
R116: 2015 | S116: 3420 | T116: 2 | U116: 11 | V116: 2013-01-13 | W116: 1
R117: 2014 | S117: 4058 | T117: 2 | U117: 12 | V117: 2013-01-13 | W117: 1
R118: 2015 | S118: 4100 | T118: 2 | U118: 12 | V118: 2013-01-13 | W118: 1
R119: 2014 | S119: 4826 | T119: 2 | U119: 13 | V119: 2013-01-13 | W119: 1
R121: 2015 | S121: 4874 | T121: 2 | U121: 13 | V121: 2013-01-13 | W121: 1
R122: 2014 | S122: 5702 | T122: 2 | U122: 14 | V122: 2013-01-13 | W122: 1
R123: 2015 | S123: 5760 | T123: 2 | U123: 14 | V123: 2013-01-13 | W123: 1
R124: 2014 | S124: 6708 | T124: 2 | U124: 15 | V124: 2013-01-13 | W124: 1
R125: 2015 | S125: 6776 | T125: 2 | U125: 15 | V125: 2013-01-13 | W125: 1
A127: Local Market Supplement
A128: LMS Code | B128: Short Name | C128: =CONCATENATE(Cycle, " LMS Rates") -> 2024 LMS Rates | D128: =CONCATENATE(Cycle+1, " LMS Rates") -> 2025 LMS Rates
A131: AK | B131: Alaska | C131: 31.96 | D131: 31.96
A132: AL | B132: Albany-Schneectady, NY | C132: 20.25 | D132: 20.25
A133: AQ | B133: Albuquerque-Santa Fe-Las Vegas, NM | C133: 18.05 | D133: 18.05
A134: AT | B134: Atlanta | C134: 23.45 | D134: 23.45
A135: AU | B135: Austin-Round Rock, TX | C135: 19.99 | D135: 19.99
A136: BH | B136: Birmingham-Hoover-Talladega, AL | C136: 17.91 | D136: 17.91
A137: BO | B137: Boston | C137: 31.97 | D137: 31.97
A138: BU | B138: Buffalo | C138: 21.99 | D138: 21.99
A139: BN | B139: Burlington-South Burlington, VT | C139: 18.97 | D139: 18.97
A140: CT | B140: Charlotte-Concord, NC-SC | C140: 19.26 | D140: 19.26
A141: CH | B141: Chicago | C141: 30.41 | D141: 30.41
A142: CI | B142: Cincinnati | C142: 21.69 | D142: 21.69
A143: CL | B143: Cleveland | C143: 22.01 | D143: 22.01
A144: CS | B144: Colorado Springs, CO | C144: 19.73 | D144: 19.73
A145: CO | B145: Columbus | C145: 21.8 | D145: 21.8
A146: CC | B146: Corpus Christi-Kingsville-Alice, TX | C146: 17.4 | D146: 17.4
A147: DA | B147: Dallas | C147: 26.91 | D147: 26.91
A148: DV | B148: Davenport-Moline, IA-IL | C148: 18.66 | D148: 18.66
A149: DG | B149: Dayton | C149: 21.14 | D149: 21.14
A150: DM | B150: Des Moines-Ames-West Des Moines, IA | C150: 17.68 | D150: 17.68
A151: DN | B151: Denver | C151: 29.88 | D151: 29.88
A152: DT | B152: Detroit | C152: 28.82 | D152: 28.82
A153: FN | B153: Fresno-Madera-Hanford, CA | C153: 17.15 | D153: 17.15
A154: HB | B154: Harrisburg-Lebanon, PA | C154: 19.1 | D154: 19.1
A155: HA | B155: Hartford | C155: 31.62 | D155: 31.62
A156: HI | B156: Hawaii | C156: 21.79 | D156: 21.79
A157: HO | B157: Houston | C157: 34.72 | D157: 34.72
A158: HU | B158: Huntsville | C158: 21.48 | D158: 21.48
A159: IN | B159: Indianapolis | C159: 17.89 | D159: 17.89
A160: KC | B160: Kansas City-Overland Park-Kansas City, MO-KS | C160: 18.65 | D160: 18.65
A161: LR | B161: Laredo, TX | C161: 21.33 | D161: 21.33
A162: LV | B162: Las Vegas-Henderson, NV-AZ | C162: 19.23 | D162: 19.23
A163: LA | B163: Los Angeles | C163: 35.84 | D163: 35.84
A164: MI | B164: Miami | C164: 24.42 | D164: 24.42
A165: ML | B165: Milwaukee | C165: 22.15 | D165: 22.15
A166: MN | B166: Minneapolis | C166: 27.15 | D166: 27.15
A167: NY | B167: New York | C167: 37.24 | D167: 37.24
A168: OM | B168: Omaha-Council Bluffs-Fremont, NE-IA | C168: 17.94 | D168: 17.94
A169: ON | B169: Other Non-For | C169: 16.82 | D169: 16.82
A170: PB | B170: Palm Bay-Melbourne, FL | C170: 17.6 | D170: 17.6
A171: PH | B171: Philadelphia | C171: 28.55 | D171: 28.55
A172: PX | B172: Phoenix | C172: 22.02 | D172: 22.02
A173: PI | B173: Pittsburgh | C173: 20.78 | D173: 20.78
A174: PO | B174: Portland | C174: 25.66 | D174: 25.66
A175: RA | B175: Raleigh | C175: 21.9 | D175: 21.9
A176: RN | B176: Reno-Fernley, NV | C176: 17.11 | D176: 17.11
A177: RI | B177: Richmond | C177: 21.91 | D177: 21.91
A178: RT | B178: Rochester-Batavia-Seneca Falls, NY | C178: 17.35 | D178: 17.35
A179: SA | B179: Sacramento | C179: 29.16 | D179: 29.16
A180: SO | B180: San Antonio-New Braunfels-Pearsall, TX | C180: 18.49 | D180: 18.49
A181: SD | B181: San Diego | C181: 33.05 | D181: 33.05
A182: SJ | B182: San Jose | C182: 45.41 | D182: 45.41
A183: ST | B183: Seattle | C183: 30.81 | D183: 30.81
A184: SN | B184: Spokane-Spokane Valley-Coeur d'Alene, WA-ID | C184: 17.18 | D184: 17.18
A185: SL | B185: St.Louis MO_IL | C185: 19.63 | D185: 19.63
A186: TU | B186: Tucson-Nogales, AZ | C186: 18.92 | D186: 18.92
A187: VA | B187: Virginia Beach-Norfolk VA-NC | C187: 18.46 | D187: 18.46
A188: WA | B188: Washington, DC | C188: 33.26 | D188: 33.26
A189: ZX | B189: Rest of U.S. | C189: 16.82 | D189: 16.82
A190: ZY | B190: FBI Outside DC | C190: 0 | D190: 0
A191: ZZ | B191: Not in a Locality Pay Area | C191: 0 | D191: 0

Sheet Hidden Config (hidden)
G1: Begin Data Row | H1: End Data Row | I1: PPP Hide Personnel Data | J1: PPP Hide Calc | L1: Control List for ManageListForm
G2: =ROW(aLastName) -> 12 | H2: =ROW(InsertHere) -> 13 | I2: =COUNTA($I3:$I50) -> 7 | J2: =COUNTA($J3:$J50) -> 3 | L2: <select> | M2: Blanks | N2: Blanks | O2: Yes
I3: C:E | J3: AX:BA | L3: Special Situated Condition | M3: SpecialSC | N3: SSC | O3: =SSCGate -> Yes | P3: Tech/Admin - Entry
I4: M:M | J4: BE:BM | L4: Bonus Adjustment Justification | M4: BAJList | N4: BonAdjJust | O4: =BAJGate -> Yes | P4: Tech/Admin - Full Perf.
I5: O:O | J5: BT:BT | P5: Tech/Admin - Senior
I6: Q:R | P6: Super/Mgmt - Entry
I7: AA:AE | P7: Super/Mgmt - Full Perf.
I8: AG:AG | P8: Super/Mgmt - Senior
I9: AI:AM | P9: Super/Mgmt - Expert
P10: Prof - Entry
P11: Prof - Full Perf.
C12: =IF(AND(LEN($A12)>0,LEN($B12)>0),CONCATENATE("$",$A12,EndRow,":","$",$B12,EndRow),"") ->  | D12: =IF(AND(LEN($A12)>0,LEN($B12)>0),CONCATENATE("$",$A12,BeginRow+1,":","$",$B12,EndRow-1),"") ->  | P12: Prof - Senior
P13: Prof - Expert
A16: EOD < 90 days
A17: EOD 90 to 180 days
A18: DCIPS transfer In
A19: DCIPS transfer Out
A20: Promoted < 90 days
A21: Occupational Advancement
A22: Developmental/Grandfathered
A23: Annuitant
A24: Part Time
A25: Intermittent/Student
A26: Promoted Salary > 8%
A27: Promoted to DISES/DISL
A28: Long Term Training
A29: LWOP
A30: Military Service
A31: Worker's Compensation
A41: Consideration for DQI/SQI
A42: Award during the performance year
A43: Prorated for partial year | C43: =IF(AND(LEN($A44)>0,LEN($B43)>0),CONCATENATE("$",$A44,EndRow,":","$",$B43,EndRow),"") ->  | D43: =IF(AND(LEN($A44)>0,LEN($B43)>0),CONCATENATE("$",$A44,BeginRow+1,":","$",$B43,EndRow-1),"") -> 
C45: =IF(AND(LEN($A44)>0,LEN($B45)>0),CONCATENATE("$",$A44,EndRow,":","$",$B45,EndRow),"") ->  | D45: =IF(AND(LEN($A44)>0,LEN($B45)>0),CONCATENATE("$",$A44,BeginRow+1,":","$",$B45,EndRow-1),"") -> 

Sheet Summary
F1: =MATCH(F$2,'Pay Pool Panel'!$C$11:$EU$11,0) -> 47 | G1: =MATCH(G$2,'Pay Pool Panel'!$C$11:$EU$11,0) -> 48 | I1: =MATCH(I$2,'Pay Pool Panel'!$C$11:$EU$11,0) -> 61 | J1: =MATCH(J$2,'Pay Pool Panel'!$C$11:$EU$11,0) -> 97 | K1: =MATCH(K$2,'Pay Pool Panel'!$C$11:$EU$11,0) -> 99 | L1: =MATCH(L$2,'Pay Pool Panel'!$C$11:$EU$11,0) -> 100 | M1: =MATCH(M$2,'Pay Pool Panel'!$C$11:$EU$11,0) -> 106 | P1: =MATCH(P$2,'Pay Pool Panel'!$C$11:$EU$11,0) -> 136 | Q1: =MATCH(Q$2,'Pay Pool Panel'!$C$11:$EU$11,0) -> 138 | R1: =MATCH(R$2,'Pay Pool Panel'!$C$11:$EU$11,0) -> 137 | S1: =MATCH(S$2,'Pay Pool Panel'!$C$11:$EU$11,0) -> 141
A2: Last Name | B2: First Name | C2: Employee ID | D2: Pay Band (as of Extract date) | E2: Wildcard 1 | F2: Overall Rating | G2: Evaluation of Record | H2: Base Salary (as of Extract date) | I2: End Cycle Compa Ratio | J2: Floor Salary Incr. ($) | K2: Perf. Salary Incr. ($) | L2: Perf. Salary Incr. (%) | M2: Amount of Other Incr. ($) | N2: Total Salary Incr. ($) (Includes Floor & Other) | O2: Total Salary Incr. (%) (Includes Floor & Other) | P2: Total Bonus ($) | Q2: Total Bonus (% of Base Salary) | R2: Total Bonus (% of Midpoint) | S2: Estimated $ Amount of Award | T2: Perm Hidden
F3: =IF(ISBLANK($A3),"",VLOOKUP($C3,'Pay Pool Panel'!$C$12:$FH$13,F$1,FALSE)) ->  | G3: =IF(ISBLANK($A3),"",VLOOKUP($C3,'Pay Pool Panel'!$C$12:$FH$13,G$1,FALSE)) ->  | I3: =IF(ISBLANK($A3),"",VLOOKUP($C3,'Pay Pool Panel'!$C$12:$FH$13,I$1,FALSE)) ->  | J3: =IF(ISBLANK($A3),"",VLOOKUP($C3,'Pay Pool Panel'!$C$12:$FH$13,J$1,FALSE)) ->  | K3: =IF(ISBLANK($A3),"",VLOOKUP($C3,'Pay Pool Panel'!$C$12:$FH$13,K$1,FALSE)) ->  | L3: =IF(ISBLANK($A3),"",VLOOKUP($C3,'Pay Pool Panel'!$C$12:$FH$13,L$1,FALSE)) ->  | M3: =IF(ISBLANK($A3),"",VLOOKUP($C3,'Pay Pool Panel'!$C$12:$FH$13,M$1,FALSE)) ->  | N3: =IF(ISBLANK($A3),"",J3+K3+M3) ->  | O3: =IF(ISBLANK($A3),"",$N3/$H3) ->  | P3: =IF(ISBLANK($A3),"",VLOOKUP($C3,'Pay Pool Panel'!$C$12:$FH$13,P$1,FALSE)) ->  | Q3: =IF(ISBLANK($A3),"",VLOOKUP($C3,'Pay Pool Panel'!$C$12:$FH$13,Q$1,FALSE)) ->  | R3: =IF(ISBLANK($A3),"",VLOOKUP($C3,'Pay Pool Panel'!$C$12:$FH$13,R$1,FALSE)) ->  | S3: =IF(ISBLANK($A3),"",VLOOKUP($C3,'Pay Pool Panel'!$C$12:$FH$13,S$1,FALSE)) ->  | T3: =IF(ISBLANK($A3),"",SUBSTITUTE(VLOOKUP($C3,'Pay Pool Panel'!$C$12:$FH$13,MATCH(T$2,'Pay Pool Panel'!$C$11:$FH$11,0),FALSE),"0","")) -> 
F4: =IF(ISBLANK($A4),"",VLOOKUP($C4,'Pay Pool Panel'!$C$12:$FH$13,F$1,FALSE)) ->  | G4: =IF(ISBLANK($A4),"",VLOOKUP($C4,'Pay Pool Panel'!$C$12:$FH$13,G$1,FALSE)) ->  | I4: =IF(ISBLANK($A4),"",VLOOKUP($C4,'Pay Pool Panel'!$C$12:$FH$13,I$1,FALSE)) ->  | J4: =IF(ISBLANK($A4),"",VLOOKUP($C4,'Pay Pool Panel'!$C$12:$FH$13,J$1,FALSE)) ->  | K4: =IF(ISBLANK($A4),"",VLOOKUP($C4,'Pay Pool Panel'!$C$12:$FH$13,K$1,FALSE)) ->  | L4: =IF(ISBLANK($A4),"",VLOOKUP($C4,'Pay Pool Panel'!$C$12:$FH$13,L$1,FALSE)) ->  | M4: =IF(ISBLANK($A4),"",VLOOKUP($C4,'Pay Pool Panel'!$C$12:$FH$13,M$1,FALSE)) ->  | N4: =IF(ISBLANK($A4),"",J4+K4+M4) ->  | O4: =IF(ISBLANK($A4),"",$N4/$H4) ->  | P4: =IF(ISBLANK($A4),"",VLOOKUP($C4,'Pay Pool Panel'!$C$12:$FH$13,P$1,FALSE)) ->  | Q4: =IF(ISBLANK($A4),"",VLOOKUP($C4,'Pay Pool Panel'!$C$12:$FH$13,Q$1,FALSE)) ->  | R4: =IF(ISBLANK($A4),"",VLOOKUP($C4,'Pay Pool Panel'!$C$12:$FH$13,R$1,FALSE)) ->  | S4: =IF(ISBLANK($A4),"",VLOOKUP($C4,'Pay Pool Panel'!$C$12:$FH$13,S$1,FALSE)) ->  | T4: =IF(ISBLANK($A4),"",SUBSTITUTE(VLOOKUP($C4,'Pay Pool Panel'!$C$12:$FH$13,MATCH(T$2,'Pay Pool Panel'!$C$11:$FH$11,0),FALSE),"0","")) -> 

Sheet Rating Statistics
C2: =CONCATENATE("Rating Statistics for Pay Pool ",PPID) -> Rating Statistics for Pay Pool
C4: Mean Objective Rating | D4: Mean Element Rating | E4: Overall Rating
E5: Mean | F5: Std Dev | G5: Number of Employees | H5: Employees Rated
B7: Entire Pay Pool | C7: =IF($H$7=0,"",SUMPRODUCT((Rating>0)*ObjRating)/$H$7) ->  | D7: =IF($H$7=0,"",SUMPRODUCT((ElementRating>0)*ElementRating)/$H$7) ->  | E7: =IF($H$7=0,"",SUMPRODUCT((AverageRating>0)*AverageRating)/$H$7) ->  | F7: =IF($H$7<=1,"",STDEV(IF(AverageRating>0,AverageRating,""))) ->  | G7: =EmpCount -> 0 | H7: =COUNTIF(Rating,">0") -> 0
B8: =UseTitle -> Grade
C10: =IF(OR($B10="",$H10=0),"",SUMPRODUCT((StatsPPBand=$B10)*(Rating>0)*ObjRating)/$H10) ->  | D10: =IF(OR($B10="",$H10=0),"",SUMPRODUCT((StatsPPBand=$B10)*(ElementRating>0)*ElementRating)/$H10) ->  | E10: =IF(OR($B10="",$H10=0),"",SUMPRODUCT((StatsPPBand=$B10)*(AverageRating>0)*AverageRating)/$H10) ->  | F10: =IF(OR($H10<=1,$H10=""),"",STDEV(IF((StatsPPBand=$B10)*(AverageRating>0),AverageRating,""))) ->  | G10: =IF($B10="","",SUMPRODUCT((StatsPPBand=$B10)*1)) ->  | H10: =IF($B10="","",SUMPRODUCT((StatsPPBand=$B10)*(Rating>0))) -> 
B11: Organization ID 1
C13: =IF(OR($B13="",$H13=0),"",SUMPRODUCT((OrgID_01=$B13)*(Rating>0)*ObjRating)/$H13) ->  | D13: =IF(OR($B13="",$H13=0),"",SUMPRODUCT((OrgID_01=$B13)*(ElementRating>0)*ElementRating)/$H13) ->  | E13: =IF(OR($B13="",$H13=0),"",SUMPRODUCT((OrgID_01=$B13)*(AverageRating>0)*AverageRating)/$H13) ->  | F13: =IF(OR($H13<=1,$H13=""),"",STDEV(IF((OrgID_01=$B13)*(AverageRating>0),AverageRating,""))) ->  | G13: =IF($B13="","",SUMPRODUCT((OrgID_01=$B13)*1)) ->  | H13: =IF($B13="","",SUMPRODUCT((OrgID_01=$B13)*(Rating>0))) -> 
B14: Organization ID 2
C16: =IF(OR($B16="",$H16=0),"",SUMPRODUCT((OrgID_02=$B16)*(Rating>0)*ObjRating)/$H16) ->  | D16: =IF(OR($B16="",$H16=0),"",SUMPRODUCT((OrgID_02=$B16)*(ElementRating>0)*ElementRating)/$H16) ->  | E16: =IF(OR($B16="",$H16=0),"",SUMPRODUCT((OrgID_02=$B16)*(AverageRating>0)*AverageRating)/$H16) ->  | F16: =IF(OR($H16<=1,$H16=""),"",STDEV(IF((OrgID_02=$B16)*(AverageRating>0),AverageRating,""))) ->  | G16: =IF($B16="","",SUMPRODUCT((OrgID_02=$B16)*1)) ->  | H16: =IF($B16="","",SUMPRODUCT((OrgID_02=$B16)*(Rating>0))) -> 
B17: Reviewing Official
C19: =IF(OR($B19="",$H19=0),"",SUMPRODUCT((ReviewingOfficial=$B19)*(Rating>0)*ObjRating)/$H19) ->  | D19: =IF(OR($B19="",$H19=0),"",SUMPRODUCT((ReviewingOfficial=$B19)*(ElementRating>0)*ElementRating)/$H19) ->  | E19: =IF(OR($B19="",$H19=0),"",SUMPRODUCT((ReviewingOfficial=$B19)*(AverageRating>0)*AverageRating)/$H19) ->  | F19: =IF(OR($H19<=1,$H19=""),"",STDEV(IF((ReviewingOfficial=$B19)*(AverageRating>0),AverageRating,""))) ->  | G19: =IF($B19="","",SUMPRODUCT((ReviewingOfficial=$B19)*1)) ->  | H19: =IF($B19="","",SUMPRODUCT((ReviewingOfficial=$B19)*(Rating>0))) -> 
B20: Rating Official
C22: =IF(OR($B22="",$H22=0),"",SUMPRODUCT((RatingOfficial=$B22)*(Rating>0)*ObjRating)/$H22) ->  | D22: =IF(OR($B22="",$H22=0),"",SUMPRODUCT((RatingOfficial=$B22)*(ElementRating>0)*ElementRating)/$H22) ->  | E22: =IF(OR($B22="",$H22=0),"",SUMPRODUCT((RatingOfficial=$B22)*(AverageRating>0)*AverageRating)/$H22) ->  | F22: =IF(OR($H22<=1,$H22=""),"",STDEV(IF((RatingOfficial=$B22)*(AverageRating>0),AverageRating,""))) ->  | G22: =IF($B22="","",SUMPRODUCT((RatingOfficial=$B22)*1)) ->  | H22: =IF($B22="","",SUMPRODUCT((RatingOfficial=$B22)*(Rating>0))) -> 
B23: Work Cat/Level
C25: =IF(OR($B25="",$H25=0),"",SUMPRODUCT((CatLev=$B25)*(Rating>0)*ObjRating)/$H25) ->  | D25: =IF(OR($B25="",$H25=0),"",SUMPRODUCT((CatLev=$B25)*(ElementRating>0)*ElementRating)/$H25) ->  | E25: =IF(OR($B25="",$H25=0),"",SUMPRODUCT((CatLev=$B25)*(AverageRating>0)*AverageRating)/$H25) ->  | F25: =IF(OR($H25<=1,$H25=""),"",STDEV(IF((CatLev=$B25)*(AverageRating>0),AverageRating,""))) ->  | G25: =IF($B25="","",SUMPRODUCT((CatLev=$B25)*1)) ->  | H25: =IF($B25="","",SUMPRODUCT((CatLev=$B25)*(Rating>0))) -> 
B26: Wildcard
C28: =IF(OR($B28="",$H28=0),"",SUMPRODUCT((WildCard=$B28)*(Rating>0)*ObjRating)/$H28) ->  | D28: =IF(OR($B28="",$H28=0),"",SUMPRODUCT((WildCard=$B28)*(ElementRating>0)*ElementRating)/$H28) ->  | E28: =IF(OR($B28="",$H28=0),"",SUMPRODUCT((WildCard=$B28)*(AverageRating>0)*AverageRating)/$H28) ->  | F28: =IF(OR($H28<=1,$H28=""),"",STDEV(IF((WildCard=$B28)*(AverageRating>0),AverageRating,""))) ->  | G28: =IF($B28="","",SUMPRODUCT(NOT(ISBLANK(EmployeeID))*(WildCard=$B28)*1)) ->  | H28: =IF($B28="","",SUMPRODUCT((WildCard=$B28)*(Rating>0))) -> 

Sheet Rating Charts
J1: Rating Charts
J2: =PPID ->  | U2: Pick the Pay Plan to Analyze >>> | X2: IA
AB3: IA
AB4: PI
C5: Ratings | D5: Count | E5: Percent | V5: =CONCATENATE("Percent of ", U6) -> Percent of Grade
B6: Unacceptable | C6: 1 | D6: =COUNTIF(Rating,1) -> 0 | E6: =D6/$D$11 ->  | L6: (0 | U6: =IF(isNGAMode,"Pay Band","Grade") -> Grade | V6: Rated 1 | W6: Rated 2 | X6: Rated 3 | Y6: Rated 4 | Z6: Rated 5
B7: Min Successful | C7: 2 | D7: =COUNTIF(Rating,2) -> 0 | E7: =D7/$D$11 ->  | U7: 1 | V7: =SUMPRODUCT((PP_Eval=SelPlan)*(Rating=1)*(PayBand=$U7)*1) -> 0 | W7: =SUMPRODUCT((PP_Eval=SelPlan)*(Rating=2)*(PayBand=$U7)*1) -> 0 | X7: =SUMPRODUCT((PP_Eval=SelPlan)*(Rating=3)*(PayBand=$U7)*1) -> 0 | Y7: =SUMPRODUCT((PP_Eval=SelPlan)*(Rating=4)*(PayBand=$U7)*1) -> 0 | Z7: =SUMPRODUCT((PP_Eval=SelPlan)*(Rating=5)*(PayBand=$U7)*1) -> 0 | AA7: =SUM(V7:Z7) -> 0
B8: Successful | C8: 3 | D8: =COUNTIF(Rating,3) -> 0 | E8: =D8/$D$11 ->  | U8: 2 | V8: 0 | W8: 0 | X8: 0 | Y8: 0 | Z8: 0 | AA8: =SUM(V8:Z8) -> 0
B9: Excellent | C9: 4 | D9: =COUNTIF(Rating,4) -> 0 | E9: =D9/$D$11 ->  | U9: 3 | V9: 0 | W9: 0 | X9: 0 | Y9: 0 | Z9: 0 | AA9: =SUM(V9:Z9) -> 0
B10: Outstanding | C10: 5 | D10: =COUNTIF(Rating,5) -> 0 | E10: =D10/$D$11 ->  | U10: 4 | V10: 0 | W10: 0 | X10: 0 | Y10: 0 | Z10: 0 | AA10: =SUM(V10:Z10) -> 0
C11: Total | D11: =SUM(D6:D10) -> 0 | U11: 5 | V11: 0 | W11: 0 | X11: 0 | Y11: 0 | Z11: 0 | AA11: =SUM(V11:Z11) -> 0
U12: 6 | V12: 0 | W12: 0 | X12: 0 | Y12: 0 | Z12: 0 | AA12: 0
U13: 7 | V13: 0 | W13: 0 | X13: 0 | Y13: 0 | Z13: 0 | AA13: 0
U14: 8 | V14: 0 | W14: 0 | X14: 0 | Y14: 0 | Z14: 0 | AA14: 0
U15: 9 | V15: 0 | W15: 0 | X15: 0 | Y15: 0 | Z15: 0 | AA15: 0
U16: 10 | V16: 0 | W16: 0 | X16: 0 | Y16: 0 | Z16: 0 | AA16: 0
U17: 11 | V17: 0 | W17: 0 | X17: 0 | Y17: 0 | Z17: 0 | AA17: 0
U18: 12 | V18: 0 | W18: 0 | X18: 0 | Y18: 0 | Z18: 0 | AA18: 0
U19: 13 | V19: 0 | W19: 0 | X19: 0 | Y19: 0 | Z19: 0 | AA19: 0
U20: 14 | V20: 0 | W20: 0 | X20: 0 | Y20: 0 | Z20: 0 | AA20: 0
U21: 15 | V21: 0 | W21: 0 | X21: 0 | Y21: 0 | Z21: 0 | AA21: 0
V22: =SUM(V7:V21) -> 0 | W22: =SUM(W7:W21) -> 0 | X22: =SUM(X7:X21) -> 0 | Y22: =SUM(Y7:Y21) -> 0 | Z22: =SUM(Z7:Z21) -> 0 | AA22: 0
B30: 1.0 to 1.9 | C30: =SUMPRODUCT((AverageRating>=1)*(AverageRating<2)) -> 0 | D30: =$C30/$E$30 ->  | E30: =SUM(C30:C61) -> 0 | U30: =CONCATENATE("% values for ratings by ",U6) -> % values for ratings by Grade
B31: 2 | C31: =COUNTIF(AverageRating,"="&$B31) -> 0 | U31: =U6 -> Grade | V31: Unacceptable | W31: Min Successful | X31: Successful | Y31: Excellent | Z31: Outstanding
B32: 2.1 | C32: 0 | U32: 1 | V32: =IF($AA7>0,V7/$AA7,"") -> 
B33: 2.2 | C33: 0 | U33: 2
B34: 2.3 | C34: 0 | U34: 3
B35: 2.4 | C35: 0 | U35: 4
B36: 2.5 | C36: 0 | U36: 5
B37: 2.6 | C37: 0 | U37: 6
B38: 2.7 | C38: 0 | U38: 7
B39: 2.8 | C39: 0 | U39: 8
B40: 2.9 | C40: 0 | U40: 9
B41: 3 | C41: 0 | U41: 10
B42: 3.1 | C42: 0 | U42: 11
B43: 3.2 | C43: 0 | U43: 12
B44: 3.3 | C44: 0 | U44: 13
B45: 3.4 | C45: 0 | U45: 14 | V45: =IF($AA20>0,V20/$AA20,"") -> 
B46: 3.5 | C46: 0 | U46: 15
B47: 3.6 | C47: 0
B48: 3.7 | C48: 0
B49: 3.8 | C49: 0
B50: 3.9 | C50: 0
B51: 4 | C51: 0
B52: 4.1 | C52: 0
B53: 4.2 | C53: 0
B54: 4.3 | C54: 0
B55: 4.4 | C55: 0
B56: 4.5 | C56: 0
B57: 4.6 | C57: 0
B58: 4.7 | C58: 0
B59: 4.8 | C59: 0
B60: 4.9 | C60: 0
B61: 5 | C61: 0

Sheet Hidden Sal Inc Rates (hidden)
B1: Rating Range | C1: Payout Range | F1: Bonus Share Info
A2: Low | B2: 2.6 | C2: 0
A3: High | B3: 5 | C3: 0.06 | F3: Min Shares | G3: 1
A4: Range | B4: =B3-B2 -> 2.4 | C4: 0.06 | F4: Total Shares | G4: =SUM(BonusSharesFinal) -> 0
A5: Incr | B5: 0.1 | F5: Share Value | G5: =IF(OR(SumBonusElig=0,'Hidden Sal Inc Rates'!G4=0),0,MAX(0,(bonusfund+IF(BonAdjust<0,-BonAdjust,IF(BonAdjPot<0,BonAdjPot,0))))/SUMPRODUCT(BandMidpoints,BonusSharesFinal)) -> 0
A6: # of Incr | B6: =1+B4/B5 -> 25
A7: Increment | B7: =C4/B6 -> 0.0024
F11: Bonus Share Table
F12: Rating Lookup | G12: Shares | H12: Ratio of next higher rating
F13: 2.6 | G13: =ROUND(IF(F13=BonusThreshold,$G$3,IF(F13>BonusThreshold,G12*(1+Export_24),0)),2) -> 0
F14: 2.7 | G14: 0 | H14: =IF(G13=0,0,(G14-G13)/G13) -> 0
F15: 2.8 | G15: 0 | H15: 0
F16: 2.9 | G16: 0 | H16: 0
F17: 3 | G17: 0 | H17: 0
F18: 3.1 | G18: 0 | H18: 0
F19: 3.2 | G19: 0 | H19: 0
F20: 3.3 | G20: 0 | H20: 0
F21: 3.4 | G21: 0 | H21: 0
F22: 3.5 | G22: 1 | H22: 0
F23: 3.6 | G23: 1.1 | H23: 0.1
F24: 3.7 | G24: 1.21 | H24: 0.1
F25: 3.8 | G25: 1.33 | H25: 0.09917355372
F26: 3.9 | G26: 1.46 | H26: 0.0977443609
F27: 4 | G27: 1.61 | H27: 0.102739726
F28: 4.1 | G28: 1.77 | H28: 0.09937888199
F29: 4.2 | G29: 1.95 | H29: 0.1016949153
F30: 4.3 | G30: 2.15 | H30: 0.1025641026
F31: 4.4 | G31: 2.37 | H31: 0.1023255814
F32: 4.5 | G32: 2.61 | H32: 0.1012658228
F33: 4.6 | G33: 2.87 | H33: 0.09961685824
F34: 4.7 | G34: 3.16 | H34: 0.1010452962
F35: 4.8 | G35: 3.48 | H35: 0.1012658228
F36: 4.9 | G36: 3.83 | H36: 0.1005747126
F37: 5 | G37: 4.21 | H37: 0.09921671018

Sheet Salary Increase Statistics (hidden)
G1: =CONCATENATE("Salary Increase Statistics for Pay Pool ",PPID) -> Salary Increase Statistics for Pay Pool
E2: Mean Statistics include only employees receiving a salary increase
C3: Mean Overall Rating | D3: Mean Base Salary | E3: Mean Compa Ratio | F3: Mean Perf. Salary Increase ($) | G3: Mean Perf. Salary Increase (%) | H3: Mean Total Salary Increase ($) | I3: Mean Total Salary Increase (%) | J3: Total Number of Employees | K3: Number of Employees Rated and Eligible | L3: Employees Rcv Perf Salary Increase
B6: Entire Pay Pool | C6: =IF($K6=0,"",SUMPRODUCT((UseInAnalysis=1)*AverageRating)/$K6) ->  | D6: =IF($K6=0,"",SUMPRODUCT((UseInAnalysis=1)*BasePay)/$K6) ->  | E6: =IF($K6=0,"",SUMPRODUCT((UseInAnalysis=1)*CompaRatio)/$K6) ->  | F6: =IF($K6=0,"",SUMPRODUCT((UseInAnalysis=1)*FinalSalIncDoll)/$K6) ->  | G6: =IF($K6=0,"",SUMPRODUCT((UseInAnalysis=1)*FinalSalIncPer)/$K6) ->  | H6: =IF($K6=0,"",SUMPRODUCT((UseInAnalysis=1)*TotalSalIncDol)/$K6) ->  | I6: =IF($K6=0,"",SUMPRODUCT((UseInAnalysis=1)*TotalSalIncPer)/$K6) ->  | J6: =EmpCount -> 0 | K6: =COUNTIF(UseInAnalysis,"=1") -> 0 | L6: =COUNTIF(FinalSalIncDoll,">0") -> 0
B7: Pay Band
C9: =IF(OR($B9="",$L9=0),"",SUMPRODUCT((StatsPPBand=$B9)*(UseInAnalysis=1)*AverageRating)/$K9) ->  | D9: =IF(OR($B9="",$L9=0),"",SUMPRODUCT((StatsPPBand=$B9)*(UseInAnalysis=1)*BasePay)/$K9) ->  | E9: =IF(OR($B9="",$L9=0),"",SUMPRODUCT((StatsPPBand=$B9)*(UseInAnalysis)*CompaRatio)/$K9) ->  | F9: =IF(OR($B9="",$L9=0),"",SUMPRODUCT((StatsPPBand=$B9)*(FinalSalIncDoll))/$K9) ->  | G9: =IF(OR($B9="",$L9=0),"",SUMPRODUCT((StatsPPBand=$B9)*(FinalSalIncPer))/$K9) ->  | H9: =IF(OR($B9="",$L9=0),"",SUMPRODUCT((StatsPPBand=$B9)*(UseInAnalysis=1)*TotalSalIncDol)/$K9) ->  | I9: =IF(OR($B9="",$L9=0),"",SUMPRODUCT((StatsPPBand=$B9)*(UseInAnalysis=1)*TotalSalIncPer)/$K9) ->  | J9: =IF($B9="","",SUMPRODUCT((StatsPPBand=$B9)*1)) ->  | K9: =IF($B9="","",SUMPRODUCT((StatsPPBand=$B9)*(UseInAnalysis=1))) ->  | L9: =IF($B9="","",SUMPRODUCT((StatsPPBand=$B9)*(FinalSalIncDoll>0))) -> 
B10: Organization ID 1
C12: =IF(OR($B12="",$L12=0),"",SUMPRODUCT((OrgID_01=$B12)*(UseInAnalysis=1)*AverageRating)/$K12) ->  | D12: =IF(OR($B12="",$L12=0),"",SUMPRODUCT((OrgID_01=$B12)*(UseInAnalysis=1)*BasePay)/$K12) ->  | E12: =IF(OR($B12="",$L12=0),"",SUMPRODUCT((OrgID_01=$B12)*(UseInAnalysis)*CompaRatio)/$K12) ->  | F12: =IF(OR($B12="",$L12=0),"",SUMPRODUCT((OrgID_01=$B12)*(FinalSalIncDoll))/$K12) ->  | G12: =IF(OR($B12="",$L12=0),"",SUMPRODUCT((OrgID_01=$B12)*(FinalSalIncPer))/$K12) ->  | H12: =IF(OR($B12="",$L12=0),"",SUMPRODUCT((OrgID_01=$B12)*(UseInAnalysis=1)*TotalSalIncDol)/$K12) ->  | I12: =IF(OR($B12="",$L12=0),"",SUMPRODUCT((OrgID_01=$B12)*(UseInAnalysis=1)*TotalSalIncPer)/$K12) ->  | J12: =IF($B12="","",SUMPRODUCT((OrgID_01=$B12)*1)) ->  | K12: =IF($B12="","",SUMPRODUCT((OrgID_01=$B12)*(UseInAnalysis=1))) ->  | L12: =IF($B12="","",SUMPRODUCT((OrgID_01=$B12)*(FinalSalIncDoll>0))) -> 
B13: Organization ID 2
C15: =IF(OR($B15="",$L15=0),"",SUMPRODUCT((OrgID_02=$B15)*(UseInAnalysis=1)*AverageRating)/$K15) ->  | D15: =IF(OR($B15="",$L15=0),"",SUMPRODUCT((OrgID_02=$B15)*(UseInAnalysis=1)*BasePay)/$K15) ->  | E15: =IF(OR($B15="",$L15=0),"",SUMPRODUCT((OrgID_02=$B15)*(UseInAnalysis)*CompaRatio)/$K15) ->  | F15: =IF(OR($B15="",$L15=0),"",SUMPRODUCT((OrgID_02=$B15)*(FinalSalIncDoll))/$K15) ->  | G15: =IF(OR($B15="",$L15=0),"",SUMPRODUCT((OrgID_02=$B15)*(FinalSalIncPer))/$K15) ->  | H15: =IF(OR($B15="",$L15=0),"",SUMPRODUCT((OrgID_02=$B15)*(UseInAnalysis=1)*TotalSalIncDol)/$K15) ->  | I15: =IF(OR($B15="",$L15=0),"",SUMPRODUCT((OrgID_02=$B15)*(UseInAnalysis=1)*TotalSalIncPer)/$K15) ->  | J15: =IF($B15="","",SUMPRODUCT((OrgID_02=$B15)*1)) ->  | K15: =IF($B15="","",SUMPRODUCT((OrgID_02=$B15)*(UseInAnalysis=1))) ->  | L15: =IF($B15="","",SUMPRODUCT((OrgID_02=$B15)*(FinalSalIncDoll>0))) -> 
B16: Reviewing Official
C18: =IF(OR($B18="",$L18=0),"",SUMPRODUCT((ReviewingOfficial=$B18)*(UseInAnalysis=1)*AverageRating)/$K18) ->  | D18: =IF(OR($B18="",$L18=0),"",SUMPRODUCT((ReviewingOfficial=$B18)*(UseInAnalysis=1)*BasePay)/$K18) ->  | E18: =IF(OR($B18="",$L18=0),"",SUMPRODUCT((ReviewingOfficial=$B18)*(UseInAnalysis)*CompaRatio)/$K18) ->  | F18: =IF(OR($B18="",$L18=0),"",SUMPRODUCT((ReviewingOfficial=$B18)*(FinalSalIncDoll))/$K18) ->  | G18: =IF(OR($B18="",$L18=0),"",SUMPRODUCT((ReviewingOfficial=$B18)*(FinalSalIncPer))/$K18) ->  | H18: =IF(OR($B18="",$L18=0),"",SUMPRODUCT((ReviewingOfficial=$B18)*(UseInAnalysis=1)*TotalSalIncDol)/$K18) ->  | I18: =IF(OR($B18="",$L18=0),"",SUMPRODUCT((ReviewingOfficial=$B18)*(UseInAnalysis=1)*TotalSalIncPer)/$K18) ->  | J18: =IF($B18="","",SUMPRODUCT((ReviewingOfficial=$B18)*1)) ->  | K18: =IF($B18="","",SUMPRODUCT((ReviewingOfficial=$B18)*(UseInAnalysis=1))) ->  | L18: =IF($B18="","",SUMPRODUCT((ReviewingOfficial=$B18)*(FinalSalIncDoll>0))) -> 
B19: Rating Official
C21: =IF(OR($B21="",$L21=0),"",SUMPRODUCT((RatingOfficial=$B21)*(UseInAnalysis=1)*AverageRating)/$K21) ->  | D21: =IF(OR($B21="",$L21=0),"",SUMPRODUCT((RatingOfficial=$B21)*(UseInAnalysis=1)*BasePay)/$K21) ->  | E21: =IF(OR($B21="",$L21=0),"",SUMPRODUCT((RatingOfficial=$B21)*(UseInAnalysis)*CompaRatio)/$K21) ->  | F21: =IF(OR($B21="",$L21=0),"",SUMPRODUCT((RatingOfficial=$B21)*(FinalSalIncDoll))/$K21) ->  | G21: =IF(OR($B21="",$L21=0),"",SUMPRODUCT((RatingOfficial=$B21)*(FinalSalIncPer))/$K21) ->  | H21: =IF(OR($B21="",$L21=0),"",SUMPRODUCT((RatingOfficial=$B21)*(UseInAnalysis=1)*TotalSalIncDol)/$K21) ->  | I21: =IF(OR($B21="",$L21=0),"",SUMPRODUCT((RatingOfficial=$B21)*(UseInAnalysis=1)*TotalSalIncPer)/$K21) ->  | J21: =IF($B21="","",SUMPRODUCT((RatingOfficial=$B21)*1)) ->  | K21: =IF($B21="","",SUMPRODUCT((RatingOfficial=$B21)*(UseInAnalysis=1))) ->  | L21: =IF($B21="","",SUMPRODUCT((RatingOfficial=$B21)*(FinalSalIncDoll>0))) -> 
B22: Work Category
C24: =IF(OR($B24="",$L24=0),"",SUMPRODUCT((CatLev=$B24)*(UseInAnalysis=1)*AverageRating)/$K24) ->  | D24: =IF(OR($B24="",$L24=0),"",SUMPRODUCT((CatLev=$B24)*(UseInAnalysis=1)*BasePay)/$K24) ->  | E24: =IF(OR($B24="",$L24=0),"",SUMPRODUCT((CatLev=$B24)*(UseInAnalysis)*CompaRatio)/$K24) ->  | F24: =IF(OR($B24="",$L24=0),"",SUMPRODUCT((CatLev=$B24)*(FinalSalIncDoll))/$K24) ->  | G24: =IF(OR($B24="",$L24=0),"",SUMPRODUCT((CatLev=$B24)*(FinalSalIncPer))/$K24) ->  | H24: =IF(OR($B24="",$L24=0),"",SUMPRODUCT((CatLev=$B24)*(UseInAnalysis=1)*TotalSalIncDol)/$K24) ->  | I24: =IF(OR($B24="",$L24=0),"",SUMPRODUCT((CatLev=$B24)*(UseInAnalysis=1)*TotalSalIncPer)/$K24) ->  | J24: =IF($B24="","",SUMPRODUCT((CatLev=$B24)*1)) ->  | K24: =IF($B24="","",SUMPRODUCT((CatLev=$B24)*(UseInAnalysis=1))) ->  | L24: =IF($B24="","",SUMPRODUCT((CatLev=$B24)*(FinalSalIncDoll>0))) -> 
B25: Wildcard
C27: =IF(OR($B27="",$L27=0),"",SUMPRODUCT((WildCard=$B27)*(UseInAnalysis=1)*AverageRating)/$K27) ->  | D27: =IF(OR($B27="",$L27=0),"",SUMPRODUCT((WildCard=$B27)*(UseInAnalysis=1)*BasePay)/$K27) ->  | E27: =IF(OR($B27="",$L27=0),"",SUMPRODUCT((WildCard=$B27)*(UseInAnalysis)*CompaRatio)/$K27) ->  | F27: =IF(OR($B27="",$L27=0),"",SUMPRODUCT((WildCard=$B27)*(FinalSalIncDoll))/$K27) ->  | G27: =IF(OR($B27="",$L27=0),"",SUMPRODUCT((WildCard=$B27)*(FinalSalIncPer))/$K27) ->  | H27: =IF(OR($B27="",$L27=0),"",SUMPRODUCT((WildCard=$B27)*(UseInAnalysis=1)*TotalSalIncDol)/$K27) ->  | I27: =IF(OR($B27="",$L27=0),"",SUMPRODUCT((WildCard=$B27)*(UseInAnalysis=1)*TotalSalIncPer)/$K27) ->  | J27: =IF($B27="","",SUMPRODUCT((WildCard=$B27)*1)) ->  | K27: =IF($B27="","",SUMPRODUCT((WildCard=$B27)*(UseInAnalysis=1))) ->  | L27: =IF($B27="","",SUMPRODUCT((WildCard=$B27)*(FinalSalIncDoll>0))) -> 

Sheet Hidden Combo Chart (hidden)

Sheet Salary Increase Charts (hidden)
K1: Salary Increase Charts
K2: =PPID -> 
J7: % for Salary | K7: Count for Salary
L8: 0
I9: 0 to 1 % | J9: =IF($K$20>0,$K9/$K$20) -> FALSE | K9: =SUMPRODUCT((FinalSalIncPer>L8)*(FinalSalIncPer<=L9)) -> 0 | L9: 0.01
I10: 1 to 2% | J10: FALSE | K10: 0 | L10: 0.02
I11: 2 to 3% | J11: FALSE | K11: 0 | L11: 0.03
I12: 3 to 4% | J12: FALSE | K12: 0 | L12: 0.04
I13: 4 to 5% | J13: FALSE | K13: 0 | L13: 0.05
I14: 5 to 6% | J14: FALSE | K14: 0 | L14: 0.06
I15: 6 to 7% | J15: FALSE | K15: 0 | L15: 0.07
I16: 7 to 8% | J16: FALSE | K16: 0 | L16: 0.08
I17: 8 to 9% | J17: FALSE | K17: 0 | L17: 0.09
I18: 9 to 10% | J18: FALSE | K18: =SUMPRODUCT((FinalSalIncPer>L17)*(FinalSalIncPer<=L18)) -> 0 | L18: 0.1
I19: Above 10% | J19: FALSE | K19: =COUNTIF(FinalSalIncPer,">"&L18) -> 0
I20: Total | K20: =SUM(K9:K19) -> 0
C60: 0 | D60: =PO_SalDol_Overall ->  | M60: 0 | N60: =AvgSalInc -> 
C61: 1 | D61: =PO_SalDol_Overall ->  | M61: 1 | N61: =AvgSalInc -> 

Sheet Total Salary Increase Charts (hidden)
K1: Total Salary Increase Charts
K2: =PPID -> 
I5: % for Salary | J5: Count for Salary
K6: 0
H7: 0 to 1 % | I7: =IF($J$18>0,$J7/$J$18) -> FALSE | J7: =SUMPRODUCT((TotalSalIncPer>K6)*(TotalSalIncPer<=K7)) -> 0 | K7: 0.01
H8: 1 to 2% | I8: FALSE | J8: 0 | K8: 0.02
H9: 2 to 3% | I9: FALSE | J9: 0 | K9: 0.03
H10: 3 to 4% | I10: FALSE | J10: 0 | K10: 0.04
H11: 4 to 5% | I11: FALSE | J11: 0 | K11: 0.05
H12: 5 to 6% | I12: FALSE | J12: 0 | K12: 0.06
H13: 6 to 7% | I13: FALSE | J13: 0 | K13: 0.07
H14: 7 to 8% | I14: FALSE | J14: 0 | K14: 0.08
H15: 8 to 9% | I15: FALSE | J15: 0 | K15: 0.09
H16: 9 to 10% | I16: FALSE | J16: =SUMPRODUCT((TotalSalIncPer>K15)*(TotalSalIncPer<=K16)) -> 0 | K16: 0.1
H17: Above 10% | I17: FALSE | J17: =COUNTIF(TotalSalIncPer,">"&K16) -> 0
H18: Total | J18: =SUM(J7:J17) -> 0
B56: ="Mean Total Salary Increase % by " & 'Pay Pool Panel'!$B25 -> Mean Total Salary Increase % by Grade
C57: 0 | D57: =PO_TotDol_Overall ->  | M57: 0 | N57: =PO_TotPct_Overall -> 
C58: 1 | D58: =PO_TotDol_Overall ->  | M58: 1 | N58: =PO_TotPct_Overall -> 

Sheet Bonus Statistics
F1: Bonus Statistics
F2: Includes Employees Receiving a Bonus
C4: Mean Overall Rating | D4: Mean Base Salary | E4: Mean Compa Ratio | F4: Mean Bonus ($) | G4: Mean Bonus (% of Midpoint) | H4: Employees Rated | I4: Number of Employees Rated and Bonus Eligible | J4: Employees Receiving Bonus | K4: Pct of Employees with Bonus
B6: Entire Pay Pool | C6: =IF($J6=0,"",SUMPRODUCT((TotalBonus>0)*AverageRating)/$J6) ->  | D6: =IF($J6=0,"",SUMPRODUCT((TotalBonus>0)*BasePay)/$J6) ->  | E6: =IF($J6=0,"",SUMPRODUCT((TotalBonus>0)*CompaRatio)/$J6) ->  | F6: =IF($J6=0,"",SUM(TotalBonus)/$J6) ->  | G6: =IF($J6=0,"",SUM(TotalBonusPer)/$J6) ->  | H6: =COUNTIF(Rating,">0") -> 0 | I6: =SUMPRODUCT((Rating>0)*(BonusEligible="Yes")*1) -> 0 | J6: =COUNTIF(TotalBonus,">0") -> 0 | K6: =IF($I6=0,"",$J6/$I6) -> 
B7: =UseTitle -> Grade
C9: =IF(OR($B9="",$J9=0),"",SUMPRODUCT((StatsPPBand=$B9)*(TotalBonus>0)*AverageRating)/$J9) ->  | D9: =IF(OR($B9="",$J9=0),"",SUMPRODUCT((StatsPPBand=$B9)*(TotalBonus>0)*BasePay)/$J9) ->  | E9: =IF(OR($B9="",$J9=0),"",SUMPRODUCT((StatsPPBand=$B9)*(TotalBonus>0)*CompaRatio)/$J9) ->  | F9: =IF(OR($B9="",$J9=0),"",SUMPRODUCT((StatsPPBand=$B9)*(TotalBonus))/$J9) ->  | G9: =IF(OR($B9="",$J9=0),"",SUMPRODUCT((StatsPPBand=$B9)*(TotalBonusPer))/$J9) ->  | H9: =IF($B9="","",SUMPRODUCT((StatsPPBand=$B9)*(Rating>0))) ->  | I9: =IF($B9="","",SUMPRODUCT((StatsPPBand>0)*(BonusEligible="Yes")*(PayBand=$B9)*1)) ->  | J9: =IF($B9="","",SUMPRODUCT((StatsPPBand=$B9)*(TotalBonus>0))) ->  | K9: =IF(OR($I9=0,$B9=""),"",$J9/$I9) -> 
B10: Organization ID 1
C12: =IF(OR($B12="",$J12=0),"",SUMPRODUCT((OrgID_01=$B12)*(TotalBonus>0)*AverageRating)/$J12) ->  | D12: =IF(OR($B12="",$J12=0),"",SUMPRODUCT((OrgID_01=$B12)*(TotalBonus>0)*BasePay)/$J12) ->  | E12: =IF(OR($B12="",$J12=0),"",SUMPRODUCT((OrgID_01=$B12)*(TotalBonus>0)*CompaRatio)/$J12) ->  | F12: =IF(OR($B12="",$J12=0),"",SUMPRODUCT((OrgID_01=$B12)*(TotalBonus))/$J12) ->  | G12: =IF(OR($B12="",$J12=0),"",SUMPRODUCT((OrgID_01=$B12)*(TotalBonusPer))/$J12) ->  | H12: =IF($B12="","",SUMPRODUCT((OrgID_01=$B12)*(Rating>0))) ->  | I12: =IF($B12="","",SUMPRODUCT((Rating>0)*(BonusEligible="Yes")*(OrgID_01=$B12)*1)) ->  | J12: =IF($B12="","",SUMPRODUCT((OrgID_01=$B12)*(TotalBonus>0))) ->  | K12: =IF(OR($I12=0,$B12=""),"",$J12/$I12) -> 
B13: Organization ID 2
C15: =IF(OR($B15="",$J15=0),"",SUMPRODUCT((OrgID_02=$B15)*(TotalBonus>0)*AverageRating)/$J15) ->  | D15: =IF(OR($B15="",$J15=0),"",SUMPRODUCT((OrgID_02=$B15)*(TotalBonus>0)*BasePay)/$J15) ->  | E15: =IF(OR($B15="",$J15=0),"",SUMPRODUCT((OrgID_02=$B15)*(TotalBonus>0)*CompaRatio)/$J15) ->  | F15: =IF(OR($B15="",$J15=0),"",SUMPRODUCT((OrgID_02=$B15)*(TotalBonus))/$J15) ->  | G15: =IF(OR($B15="",$J15=0),"",SUMPRODUCT((OrgID_02=$B15)*(TotalBonusPer))/$J15) ->  | H15: =IF($B15="","",SUMPRODUCT((OrgID_02=$B15)*(Rating>0))) ->  | I15: =IF($B15="","",SUMPRODUCT((Rating>0)*(BonusEligible="Yes")*(OrgID_02=$B15)*1)) ->  | J15: =IF($B15="","",SUMPRODUCT((OrgID_02=$B15)*(TotalBonus>0))) ->  | K15: =IF(OR($I15=0,$B15=""),"",$J15/$I15) -> 
B16: Reviewing Official
C18: =IF(OR($B18="",$J18=0),"",SUMPRODUCT((ReviewingOfficial=$B18)*(TotalBonus>0)*AverageRating)/$J18) ->  | D18: =IF(OR($B18="",$J18=0),"",SUMPRODUCT((ReviewingOfficial=$B18)*(TotalBonus>0)*BasePay)/$J18) ->  | E18: =IF(OR($B18="",$J18=0),"",SUMPRODUCT((ReviewingOfficial=$B18)*(TotalBonus>0)*CompaRatio)/$J18) ->  | F18: =IF(OR($B18="",$J18=0),"",SUMPRODUCT((ReviewingOfficial=$B18)*(TotalBonus))/$J18) ->  | G18: =IF(OR($B18="",$J18=0),"",SUMPRODUCT((ReviewingOfficial=$B18)*(TotalBonusPer))/$J18) ->  | H18: =IF($B18="","",SUMPRODUCT((ReviewingOfficial=$B18)*(Rating>0))) ->  | I18: =IF($B18="","",SUMPRODUCT((Rating>0)*(BonusEligible="Yes")*(ReviewingOfficial=$B18)*1)) ->  | J18: =IF($B18="","",SUMPRODUCT((ReviewingOfficial=$B18)*(TotalBonus>0))) ->  | K18: =IF(OR($I18=0,$B18=""),"",$J18/$I18) -> 
B19: Rating Official
C21: =IF(OR($B21="",$J21=0),"",SUMPRODUCT((RatingOfficial=$B21)*(TotalBonus>0)*AverageRating)/$J21) ->  | D21: =IF(OR($B21="",$J21=0),"",SUMPRODUCT((RatingOfficial=$B21)*(TotalBonus>0)*BasePay)/$J21) ->  | E21: =IF(OR($B21="",$J21=0),"",SUMPRODUCT((RatingOfficial=$B21)*(TotalBonus>0)*CompaRatio)/$J21) ->  | F21: =IF(OR($B21="",$J21=0),"",SUMPRODUCT((RatingOfficial=$B21)*(TotalBonus))/$J21) ->  | G21: =IF(OR($B21="",$J21=0),"",SUMPRODUCT((RatingOfficial=$B21)*(TotalBonusPer))/$J21) ->  | H21: =IF($B21="","",SUMPRODUCT((RatingOfficial=$B21)*(Rating>0))) ->  | I21: =IF($B21="","",SUMPRODUCT((Rating>0)*(BonusEligible="Yes")*(RatingOfficial=$B21)*1)) ->  | J21: =IF($B21="","",SUMPRODUCT((RatingOfficial=$B21)*(TotalBonus>0))) ->  | K21: =IF(OR($I21=0,$B21=""),"",$J21/$I21) -> 
B22: Work Cat/Level
C24: =IF(OR($B24="",$J24=0),"",SUMPRODUCT((CatLev=$B24)*(TotalBonus>0)*AverageRating)/$J24) ->  | D24: =IF(OR($B24="",$J24=0),"",SUMPRODUCT((CatLev=$B24)*(TotalBonus>0)*BasePay)/$J24) ->  | E24: =IF(OR($B24="",$J24=0),"",SUMPRODUCT((CatLev=$B24)*(TotalBonus>0)*CompaRatio)/$J24) ->  | F24: =IF(OR($B24="",$J24=0),"",SUMPRODUCT((CatLev=$B24)*(TotalBonus))/$J24) ->  | G24: =IF(OR($B24="",$J24=0),"",SUMPRODUCT((CatLev=$B24)*(TotalBonusPer))/$J24) ->  | H24: =IF($B24="","",SUMPRODUCT((CatLev=$B24)*(Rating>0))) ->  | I24: =IF($B24="","",SUMPRODUCT((Rating>0)*(BonusEligible="Yes")*(CatLev=$B24)*1)) ->  | J24: =IF($B24="","",SUMPRODUCT((CatLev=$B24)*(TotalBonus>0))) ->  | K24: =IF(OR($I24=0,$B24=""),"",$J24/$I24) -> 
B25: Wildcard
C27: =IF(OR($B27="",$J27=0),"",SUMPRODUCT((WildCard=B27)*(TotalBonus>0)*AverageRating)/$J27) ->  | D27: =IF(OR($B27="",$J27=0),"",SUMPRODUCT((WildCard=$B27)*(TotalBonus>0)*BasePay)/$J27) ->  | E27: =IF(OR($B27="",$J27=0),"",SUMPRODUCT((WildCard=$B27)*(TotalBonus>0)*CompaRatio)/$J27) ->  | F27: =IF(OR($B27="",$J27=0),"",SUMPRODUCT((WildCard=$B27)*(TotalBonus))/$J27) ->  | G27: =IF(OR($B27="",$J27=0),"",SUMPRODUCT((WildCard=$B27)*(TotalBonusPer))/$J27) ->  | H27: =IF($B27="","",SUMPRODUCT((WildCard=$B27)*(Rating>0))) ->  | I27: =IF($B27="","",SUMPRODUCT((Rating>0)*(BonusEligible="Yes")*(WildCard=$B27)*1)) ->  | J27: =IF($B27="","",SUMPRODUCT((WildCard=$B27)*(TotalBonus>0))) ->  | K27: =IF(OR($I27=0,$B27=""),"",$J27/$I27) -> 

Sheet Bonus Charts
J1: Bonus Charts
J2: =PPID -> 
C4: % of Midpoint | D4: Count for Midpoint | E4: % for Salary | F4: Count for Bonus
G5: 0
B6: 0 to 1 % | C6: =IF($D$17>0,$D6/$D$17) -> FALSE | D6: =SUMPRODUCT((TotalBonusPer>G5)*(TotalBonusPer<=G6)) -> 0 | E6: =IF($F$17>0,$F6/$F$17) -> FALSE | F6: =SUMPRODUCT((TotalBonusPerBP>G5)*(TotalBonusPerBP<=G6)) -> 0 | G6: 0.01
B7: 1 to 2% | C7: FALSE | D7: 0 | E7: FALSE | F7: 0 | G7: 0.02
B8: 2 to 3% | C8: FALSE | D8: 0 | E8: FALSE | F8: 0 | G8: 0.03
B9: 3 to 4% | C9: FALSE | D9: 0 | E9: FALSE | F9: 0 | G9: 0.04
B10: 4 to 5% | C10: FALSE | D10: =SUMPRODUCT((TotalBonusPer>G9)*(TotalBonusPer<=G10)) -> 0 | E10: FALSE | F10: 0 | G10: 0.05
B11: 5 to 6% | C11: FALSE | D11: =SUMPRODUCT((TotalBonusPer>G10)*(TotalBonusPer<=G11)) -> 0 | E11: FALSE | F11: 0 | G11: 0.06
B12: 6 to 7% | C12: FALSE | D12: =SUMPRODUCT((TotalBonusPer>G11)*(TotalBonusPer<=G12)) -> 0 | E12: FALSE | F12: 0 | G12: 0.07
B13: 7 to 8% | C13: FALSE | D13: =SUMPRODUCT((TotalBonusPer>G12)*(TotalBonusPer<=G13)) -> 0 | E13: FALSE | F13: 0 | G13: 0.08
B14: 8 to 9% | C14: FALSE | D14: =SUMPRODUCT((TotalBonusPer>G13)*(TotalBonusPer<=G14)) -> 0 | E14: FALSE | F14: 0 | G14: 0.09
B15: 9 to 10% | C15: FALSE | D15: 0 | E15: FALSE | F15: 0 | G15: 0.1
B16: Above 10% | C16: FALSE | D16: =COUNTIF(TotalBonusPer,">"&G15) -> 0 | E16: FALSE | F16: =COUNTIF(TotalBonusPerBP,">"&G15) -> 0
B17: Total | D17: =SUM(D6:D16) -> 0 | F17: =SUM(F6:F16) -> 0
C33: 0
C34: 1
C35: 2
C36: 3
C37: 4
C38: 5
E60: ct Bonus | F60: Avg$ Bonus
B61: Unacceptable | D61: 1 | E61: =SUMPRODUCT((Rating=D61)*(TotalBonus>0)) -> 0 | F61: =SUMPRODUCT((Rating=D61)*(TotalBonus))/MAX(1,E61) -> 0
B62: Min Successful | D62: 2 | E62: =SUMPRODUCT((Rating=D62)*(TotalBonus>0)) -> 0 | F62: =SUMPRODUCT((Rating=D62)*(TotalBonus))/MAX(1,E62) -> 0
B63: Successful | D63: 3 | E63: =SUMPRODUCT((Rating=D63)*(TotalBonus>0)) -> 0 | F63: =SUMPRODUCT((Rating=D63)*(TotalBonus))/MAX(1,E63) -> 0
B64: Excellent | D64: 4 | E64: =SUMPRODUCT((Rating=D64)*(TotalBonus>0)) -> 0 | F64: =SUMPRODUCT((Rating=D64)*(TotalBonus))/MAX(1,E64) -> 0
B65: Outstanding | D65: 5 | E65: =SUMPRODUCT((Rating=D65)*(TotalBonus>0)) -> 0 | F65: =SUMPRODUCT((Rating=D65)*(TotalBonus))/MAX(1,E65) -> 0
B81: ="Mean Bonus $ by " & 'Pay Pool Panel'!$B25 -> Mean Bonus $ by Grade | M81: ="Mean Bonus % by " & 'Pay Pool Panel'!$B25 -> Mean Bonus % by Grade
C87: 0 | D87: =AvgBonus ->  | L87: 0 | M87: =PO_BonPct_Overall -> 
C88: 1 | D88: =AvgBonus ->  | L88: 1 | M88: =PO_BonPct_Overall -> 
B107: 1.0 to 1.9 | C107: =SUMPRODUCT((AverageRating>=1)*(AverageRating<2)*(TotalBonus>0)) -> 0 | D107: =SUMPRODUCT((AverageRating>=1)*(AverageRating<2)*(TotalBonus)) -> 0 | E107: =IF(C107=0,0,D107/C107) -> 0 | F107: =SUM(C107:C138) -> 0
B108: 2 | C108: =SUMPRODUCT((AverageRating=B108)*(TotalBonus>0)) -> 0 | D108: =SUMPRODUCT((AverageRating=B108)*(TotalBonus)) -> 0 | E108: =IF(C108=0,0,D108/C108) -> 0
B109: 2.1 | C109: 0 | D109: 0 | E109: 0
B110: 2.2 | C110: 0 | D110: 0 | E110: 0
B111: 2.3 | C111: 0 | D111: 0 | E111: 0
B112: 2.4 | C112: 0 | D112: 0 | E112: 0
B113: 2.5 | C113: 0 | D113: 0 | E113: 0
B114: 2.6 | C114: 0 | D114: 0 | E114: 0
B115: 2.7 | C115: 0 | D115: 0 | E115: 0
B116: 2.8 | C116: 0 | D116: 0 | E116: 0
B117: 2.9 | C117: 0 | D117: 0 | E117: 0
B118: 3 | C118: 0 | D118: 0 | E118: 0
B119: 3.1 | C119: 0 | D119: 0 | E119: 0
B120: 3.2 | C120: 0 | D120: 0 | E120: 0
B121: 3.3 | C121: 0 | D121: 0 | E121: 0
B122: 3.4 | C122: 0 | D122: 0 | E122: 0
B123: 3.5 | C123: 0 | D123: 0 | E123: 0
B124: 3.6 | C124: 0 | D124: 0 | E124: 0
B125: 3.7 | C125: 0 | D125: 0 | E125: 0
B126: 3.8 | C126: 0 | D126: 0 | E126: 0
B127: 3.9 | C127: 0 | D127: 0 | E127: 0
B128: 4 | C128: 0 | D128: 0 | E128: 0
B129: 4.1 | C129: 0 | D129: 0 | E129: 0
B130: 4.2 | C130: 0 | D130: 0 | E130: 0
B131: 4.3 | C131: 0 | D131: 0 | E131: 0
B132: 4.4 | C132: 0 | D132: 0 | E132: 0
B133: 4.5 | C133: 0 | D133: 0 | E133: 0
B134: 4.6 | C134: 0 | D134: 0 | E134: 0
B135: 4.7 | C135: 0 | D135: 0 | E135: 0
B136: 4.8 | C136: 0 | D136: 0 | E136: 0
B137: 4.9 | C137: 0 | D137: 0 | E137: 0
B138: 5 | C138: 0 | D138: 0 | E138: 0

Sheet OpenSheet

Sheet Hidden Work (hidden)

Sheet Hidden Employee Notices (hidden)
B1: Employee Performance Pay Feedback (estimate*)
C3: Name: | E3: Leah Yung | G3: Work Role: | H3: Electronics Engineer | M3: Appraisal Period:
C4: Organization: | E4: OFC/CCC | G4: Work Category: | H4: Professional | M4: 1-Oct-14 to 30-Sep-15
C5: Pay Pool ID: | E5: PP001 | G5: Pay Band: | H5: 4 | M5: Payout Effective Date:
M6: 2016-01-10
C7: Discuss evaluation with employee and obtain signature confirming discussion. Signature of employee does not constitute agreement with appraisal or related compensation.
D8: =CONCATENATE(PRA,", Performance Review Authority") -> , Performance Review Authority | K8: =CertifiedDate -> 00:00:00
D9: =IF(AQ2="","",CONCATENATE(PPM,", Pay Pool Manager")) ->  | K9: Date
D10: =CONCATENATE(PPM,", Pay Pool Manager") -> , Pay Pool Manager | K10: =CertifiedDate -> 00:00:00
K11: Date
D13: Bob Jones | K13: Date
D14: =IF(AS4="","",AS4) -> 
D15: Employee Signature | K15: Date
C16: Your Perfomance Appraisal Details
E17: Mean Objective Rating | F17: 5 | J17: Evaluation of Record | K17: =CONCATENATE($P17," - ",$P18) -> 5 - Outstanding | P17: 5
E18: Mean Element Rating | F18: 4.67 | P18: Outstanding
C20: Remarks | I20: Compensation Detail
J22: 103121 | K22: Current Rate of Base Pay
I23: + | J23: 1032 | K23: DCIPS Floor Increase | M23: =Floor_GPI_Funding -> 0.01
I24: + | J24: 4460 | K24: Performance Pay Increase | M24: 0.0433
I25: = | J25: =SUM(J22:J24) -> 108613 | K25: New Rate of Base Pay | M25: WA
I26: + | J26: =J25*M26 -> 26306.0686 | K26: Local Mkt Supplement | L26: @ | M26: =p_LocRate/100 -> 0.2422 | P26: 24.22
I27: = | J27: =MIN(J25+J26) -> 134919.0686 | K27: New Total Base Pay
J29: =IF(OR($DM$4="",$DM$4=0),"",CONCATENATE("(of which ",DOLLAR($DM$4,0)," is Rollover from CRI)")) -> 
J30: 5479 | K30: Bonus
B32: =IF($AT$4="","",$AT$4) ->  | C32: Employee Position in Pay Band
C33: The chart plots your new salary after the applicable floor increase and performance pay increase displayed in the
C34: Compensation Detail section. The chart depicts base pay only before the additional Local Market Supplement.
K36: Your Base Pay
K37: ="Pay Band " & H5 -> Pay Band 4 | P37: 4
K38: Band Maximum | M38: =VLOOKUP(H5,Control_Points_New,4,FALSE) -> 
K39: Band Midpoint | M39: =VLOOKUP(H5,Control_Points_New,3,FALSE) -> 
K40: Your New Base Pay | M40: =J25 -> 108613
K41: Band Minimum | M41: =VLOOKUP(H5, Control_Points_New,2,FALSE) -> 
K43: Position in Pay Band | M43: =(CopyValue_09-CopyValue_10)/(CopyValue_07-CopyValue_10) -> 
K46: Your Pay Pool Results
J47: Mean Overall Rating | M47: =ROUND(OverAllAvgRating,2) -> 
J48: Mean Performance Increase | M48: =AvgSalInc -> 
J49: Mean Bonus Amount | M49: =AvgBonus -> 
B52: * | C52: Salaries and payout amounts are estimates and may change due to salary adjustments made after the pay pool cycle closeout date.
C53: Actual increases and bonuses are effective 10 January 2016 and will appear in your paycheck later in January.

Sheet Hidden Employee Bonus Notices (hidden)
B1: Employee Performance Pay Feedback (estimate*)
C3: Name: | E3: Erwin Schrodinger | G3: Work Role: | I3: Intelligence Operations Specialist | M3: Appraisal Period:
C4: Organization: | E4: OFA/AAA | G4: Work Category: | I4: Professional | M4: 1-Oct-15 to 30-Sep-16
C5: Pay Pool ID: | E5: PP005 | G5: Grade: | I5: 4 | M5: Payout Effective Date:
L6: 2017-01-08
C7: Discuss evaluation with employee and obtain signature confirming discussion. Signature of employee does not constitute agreement with appraisal or related compensation.
D8: =CONCATENATE(PRA,", Pay Pool PRA") -> , Pay Pool PRA | K8: =CertifiedDate -> 00:00:00
K9: Date
D10: =CONCATENATE(PPM,", Pay Pool Manager") -> , Pay Pool Manager | K10: =CertifiedDate -> 00:00:00
K11: Date
D13: =CONCATENATE(+P13,", Rating Official") -> Hank Greenberg, Rating Official | K13: Date | P13: Hank Greenberg | Q13: Rating Official
D15: Employee Signature | K15: Date
C16: Your Evaluation of Record | K16: =CONCATENATE(TEXT($P16,"#")," - ",$Q$16) -> 4 - Excellent | P16: 4 | Q16: Excellent
C18: Remarks | J18: Performance-Based Payout Detail
J21: =IF(OR(LEN(p_TotBonDol)=0,p_TotBonDol=0),"0",p_TotBonDol) -> 1301 | K21: Bonus | P21: 1301
J23: =IF(OR(LEN(p_QSI)=0,p_QSI=0),"",p_QSI) ->  | K23: =IF(p_QSIFlag=2,"Sustained Quality Increase",IF(p_QSIFlag=1,"DCIPS Quality Increase","")) ->  | P23: 0
P24: 0
G35: Pay Pool Results | P35: =EOR_Mode ->  | Q35: =IF(LEN($P35)=0,"",IF(P35=3,"Successful",IF(P35=4,"Excellent",IF(P35=5,"Outstanding",IF(P35=2,"Min Successful",IF(P35=1,"Unacceptable","No Rating")))))) -> 
H36: Modal Evaluation Of Record | J36: =P36 ->  | P36: =IF(P35<>"", CONCATENATE(P35," - ", Q35),"") -> 
H37: Mean Bonus Amount | I37: ** | J37: =AvgBonus -> 
H38: % Receiving Bonus | J38: =Export_21 -> 0
B40: * | D40: DCIPS Quality Increase amount is an estimate and may change due to salary adjustments made after the end of the
D41: performance appraisal cycle. Actual increases and bonuses are effective 8 January 2017 and will appear in your paycheck
D42: for the first pay period in January.
B43: ** | D43: Mean Bonus Amount among employees who received a bonus.
U45: 1 | V45: CopyValue_25 | W45: ='Employee Bonus Notices'!$A$1
U46: =1+U45 -> 2 | V46: Print_Area | W46: ='Employee Bonus Notices'!$A$1:$N$42
U47: =1+U46 -> 3 | V47: CopyValue_03 | W47: ='Employee Bonus Notices'!$D$10
U48: 4 | V48: CopyValue_17 | W48: ='Employee Bonus Notices'!$D$13
U49: 5 | V49: CopyValue_04 | W49: ='Employee Bonus Notices'!$D$8
U50: 6 | V50: Print_Name | W50: ='Employee Bonus Notices'!$E$3
U51: 7 | V51: p_Org_1 | W51: ='Employee Bonus Notices'!$E$4
U52: 8 | V52: p_PPID | W52: ='Employee Bonus Notices'!$E$5
U53: 9 | V53: p_WorkRole | W53: ='Employee Bonus Notices'!$I$3
U54: 10 | V54: p_WorkCat | W54: ='Employee Bonus Notices'!$I$4
U55: 11 | V55: p_PB | W55: ='Employee Bonus Notices'!$I$5
U56: 12 | V56: CopyValue_07 | W56: ='Employee Bonus Notices'!$J$21
U57: 13 | V57: CopyValue_09 | W57: ='Employee Bonus Notices'!$J$23
U58: 14 | V58: CopyValue_08 | W58: ='Employee Bonus Notices'!$J$231
U59: 15 | V59: CopyValue_13 | W59: ='Employee Bonus Notices'!$J$36
U60: 16 | V60: CopyValue_14 | W60: ='Employee Bonus Notices'!$J$37
U61: 17 | V61: CopyValue_15 | W61: ='Employee Bonus Notices'!$J$38
U62: 18 | V62: CopyValue_02 | W62: ='Employee Bonus Notices'!$K$10
U63: 19 | V63: CopyValue_05 | W63: ='Employee Bonus Notices'!$K$16
U64: 20 | V64: CopyValue_01 | W64: ='Employee Bonus Notices'!$K$8
U65: 21 | V65: p_RatingOfficial | W65: ='Employee Bonus Notices'!$P$13
U66: 22 | V66: p_Rating | W66: ='Employee Bonus Notices'!$P$16
U67: 23 | V67: P_Notes_Remarks | W67: ='Employee Bonus Notices'!$P$19
U68: 24 | V68: p_TotBonDol | W68: ='Employee Bonus Notices'!$P$21
U69: 25 | V69: p_QSI | W69: ='Employee Bonus Notices'!$P$23
U70: 26 | V70: p_ROR | W70: ='Employee Bonus Notices'!$Q$16
U71: 27 | V71: opt_Factor_Scores | W71: ='Employee Notices'!$B$59:$N$59
U72: 28 | V72: PrintRem_1 | W72: ='Employee Notices'!$C$21:$G$31
U73: 29 | V73: SpecialSC | W73: ='Hidden Config'!$A$15:$A$31
U74: 30 | V74: CopyFormulaCount | W74: ='Hidden Config'!$C$2
U75: 31 | V75: PasteFormulaCount | W75: ='Hidden Config'!$D$2
U76: 32 | V76: BeginRow | W76: ='Hidden Config'!$G$2
V77: EndRow | W77: ='Hidden Config'!$H$2
V78: HiddenPersCount | W78: ='Hidden Config'!$I$2
V79: HiddenCount | W79: ='Hidden Config'!$J$2
V80: LowRating | W80: ='Hidden Sal Inc Rates'!$B$2
V81: RatingIncr | W81: ='Hidden Sal Inc Rates'!$B$5
V82: PayoutIncrement | W82: ='Hidden Sal Inc Rates'!$B$7
V83: BonusShareLookup | W83: ='Hidden Sal Inc Rates'!$F$13:$H$37
V84: BonusShareValue | W84: ='Hidden Sal Inc Rates'!$G$5
V85: Export_16 | W85: ='Hidden Sal Inc Rates'!$G$5
V86: FinalBonusShareValue | W86: ='Hidden Sal Inc Rates'!$J$5
V87: Certified | W87: =Instructions!$B$49
V88: CertifiedDate | W88: =Instructions!$B$50
V89: OriginalPPM | W89: =Instructions!$B$51
V90: PPM | W90: =Instructions!$B$52
V91: OriginalPRA | W91: =Instructions!$B$53
V92: PRA | W92: =Instructions!$B$54
V93: Cycle | W93: =Instructions!$B$55
V94: PPID | W94: =Instructions!$B$56
V95: Export_43 | W95: =Instructions!$E$3
V96: Version | W96: =Instructions!$E$3
V97: CertifyInfo | W97: =Instructions!$H$13
V98: Notes_sortHeaders | W98: =Notes!$A$3:$G$3
V99: CopyNotesFormats | W99: =Notes!$A$4:$G$4
V100: Notes_sortArea | W100: =Notes!$A$4:$H$82
V101: InsertHere_Notes | W101: =Notes!$A$82
V102: NotesID | W102: =Notes!$C$4:$C$82
V103: PasteNotesFormulas | W103: =Notes!$D$4:$E$4
V104: CopyNotesFormulas | W104: =Notes!$D$82:$E$82
V105: FB_Notes | W105: =Notes!$G$4:$G$82
V106: Notes_HideArea | W106: =Notes!$H$4
V107: PermHide_Notes | W107: =Notes!$H$4:$H$82
V108: CurrentPayTable | W108: ='Pay Bands'!$A$7:$F$37
V109: LocTable | W109: ='Pay Bands'!$B$27:$F$169
V110: LocRates | W110: ='Pay Bands'!$B$28:$F$168
V111: Control_Points_Current | W111: ='Pay Bands'!$B$4:$E$23
V112: CurrentPayBands | W112: ='Pay Bands'!$B$4:$E$23
V113: LockLocRates | W113: ='Pay Bands'!$C$28:$C$63
V114: Control_Points_New | W114: ='Pay Bands'!$G$4:$K$23
V115: Min_RR | W115: ='Pay Bands'!$L$4
V116: GPI | W116: ='Pay Bands'!$M$4
V117: EXIVCap | W117: ='Pay Bands'!$N$4
V118: OldEXIVCap | W118: ='Pay Bands'!$O$4
V119: OldGSTable | W119: ='Pay Bands'!$P$3:$T$17
V120: NewGSTable | W120: ='Pay Bands'!$V$3:$Z$17
V121: ValidateFlag_01 | W121: ='Pay Pool Panel'!$A$10
V122: Pay_Pool_Panel_sortHeaders | W122: ='Pay Pool Panel'!$A$11:$EL$11
V123: ColHeaders | W123: ='Pay Pool Panel'!$A$11:$EP$11
V124: Database | W124: ='Pay Pool Panel'!$A$11:$FB$90
V125: aLastName | W125: ='Pay Pool Panel'!$A$12
V126: DatatoExport | W126: ='Pay Pool Panel'!$A$12:$AC$90,'Pay Pool Panel'!$AE$12:$AL$90,'Pay Pool Panel'!$AN$12:$BL$90,'Pay Pool Panel'!$BY$12:$DB$90,'Pay Pool Panel'!$DJ$12:$DV$90,'Pay Pool Panel'!$DX$12:$EP$90
V127: CopyFormatsFrom | W127: ='Pay Pool Panel'!$A$12:$FB$12
V128: Pay_Pool_Panel_sortArea | W128: ='Pay Pool Panel'!$A$12:$FB$90
V129: PayPoolData | W129: ='Pay Pool Panel'!$A$12:$FB$90
V130: InsertHere | W130: ='Pay Pool Panel'!$A$90
V131: FormulaRow | W131: ='Pay Pool Panel'!$A$90:$FB$90
V132: YesNo | W132: ='Pay Pool Panel'!$A$93:$A$94
V133: HiddenRows | W133: ='Pay Pool Panel'!$A$93:$A$96
V134: No | W134: ='Pay Pool Panel'!$A$94
V135: SumOfEOR | W135: ='Pay Pool Panel'!$A$95
V136: SumOfEORLast | W136: ='Pay Pool Panel'!$A$96
V137: Pay_Pool_Panel_HideArea | W137: ='Pay Pool Panel'!$AD$12:$AD$12,'Pay Pool Panel'!$AR$12:$AS$12,'Pay Pool Panel'!$BM$12:$BW$12,'Pay Pool Panel'!$DA$12:$DA$12,'Pay Pool Panel'!$DM$12:$DO$12,'Pay Pool Panel'!$EO$12:$FB$12
V138: aBasePay | W138: ='Pay Pool Panel'!$AE$12
V139: InsCol_3 | W139: ='Pay Pool Panel'!$AF$11
V140: aWorkCat | W140: ='Pay Pool Panel'!$AG$12
V141: WorkCategory | W141: ='Pay Pool Panel'!$AG$12:$AG$90
V142: aWorkRole | W142: ='Pay Pool Panel'!$AI$12
V143: aWorkLoc | W143: ='Pay Pool Panel'!$AJ$12
V144: WorkLoc | W144: ='Pay Pool Panel'!$AJ$12:$AJ$90
V145: aLocCode | W145: ='Pay Pool Panel'!$AL$12
V146: aRatingOfficial | W146: ='Pay Pool Panel'!$AP$12
V147: RatingOfficial | W147: ='Pay Pool Panel'!$AP$12:$AP$90
V148: ReviewingOfficial | W148: ='Pay Pool Panel'!$AQ$12:$AQ$90
V149: aPPM | W149: ='Pay Pool Panel'!$AR$12
V150: HiddenColumns | W150: ='Pay Pool Panel'!$AR$12:$AS$12,'Pay Pool Panel'!$DM$12:$DO$12,'Pay Pool Panel'!$EO$12:$FB$12
V151: aPRA | W151: ='Pay Pool Panel'!$AS$12
V152: aWildcard | W152: ='Pay Pool Panel'!$AT$12
V153: wc1 | W153: ='Pay Pool Panel'!$AT$12
V154: Wildcard_1 | W154: ='Pay Pool Panel'!$AT$12:$AT$90
V155: InsCol_4 | W155: ='Pay Pool Panel'!$AU$11
V156: ratings | W156: ='Pay Pool Panel'!$AU$2
V157: aObjRating | W157: ='Pay Pool Panel'!$AV$12
V158: ObjRating | W158: ='Pay Pool Panel'!$AV$12:$AV$90
V159: InvalidFlags | W159: ='Pay Pool Panel'!$AV$8:$AY$8,'Pay Pool Panel'!$CK$8:$CL$8,'Pay Pool Panel'!$EB$8:$EC$8
V160: aEleRating | W160: ='Pay Pool Panel'!$AW$12
V161: ElementRating | W161: ='Pay Pool Panel'!$AW$12:$AW$90
V162: OverAllAvgRating | W162: ='Pay Pool Panel'!$AX$10
V163: aAvgRating | W163: ='Pay Pool Panel'!$AX$12
V164: AverageRating | W164: ='Pay Pool Panel'!$AX$12:$AX$90
V165: EOR_Mode | W165: ='Pay Pool Panel'!$AY$10
V166: aRating | W166: ='Pay Pool Panel'!$AY$12
V167: Rating | W167: ='Pay Pool Panel'!$AY$12:$AY$90
V168: InsCol_5 | W168: ='Pay Pool Panel'!$AZ$11
V169: aROR | W169: ='Pay Pool Panel'!$AZ$12
V170: aFirstName | W170: ='Pay Pool Panel'!$B$12
V171: EmpCount | W171: ='Pay Pool Panel'!$B$8
V172: ViewSet1 | W172: ='Pay Pool Panel'!$B$93
V173: ViewSet2 | W173: ='Pay Pool Panel'!$B$94
V174: ViewSet3 | W174: ='Pay Pool Panel'!$B$95
V175: UseOtherIncreases | W175: ='Pay Pool Panel'!$B$96
V176: wc2 | W176: ='Pay Pool Panel'!$BA$12
V177: Wildcard_2 | W177: ='Pay Pool Panel'!$BA$12:$BA$90
V178: InsCol_6 | W178: ='Pay Pool Panel'!$BB$11:$BH$11
V179: salinc | W179: ='Pay Pool Panel'!$BB$2
V180: Floor | W180: ='Pay Pool Panel'!$BE$12:$BE$90
V181: BandMidpoints | W181: ='Pay Pool Panel'!$BH$12:$BH$90
V182: aCtrlPoint | W182: ='Pay Pool Panel'!$BI$12
V183: LockForNoSalInc | W183: ='Pay Pool Panel'!$BI$12,'Pay Pool Panel'!$CJ$12,'Pay Pool Panel'!$CK$12,'Pay Pool Panel'!$CL$12
V184: VCP | W184: ='Pay Pool Panel'!$BI$12:$BI$90
V185: InsCol_7 | W185: ='Pay Pool Panel'!$BJ$11:$DO$11
V186: CompaRatio | W186: ='Pay Pool Panel'!$BK$12:$BK$90
V187: PristineInterimShares | W187: ='Pay Pool Panel'!$BM$12:$BM$90
V188: DatatoExport2 | W188: ='Pay Pool Panel'!$BM$12:$BM$90,'Pay Pool Panel'!$BT$12:$BT$90,'Pay Pool Panel'!$BV$12:$BW$90
V189: PristineSalaryShareValue | W189: ='Pay Pool Panel'!$BM$3
V190: PristineFinalShares | W190: ='Pay Pool Panel'!$BS$12:$BS$90
V191: PristineFinalCalcShareValue | W191: ='Pay Pool Panel'!$BS$3
V192: PristineBonusShareValue | W192: ='Pay Pool Panel'!$BV$10
V193: PristineBonusSharesFinal | W193: ='Pay Pool Panel'!$BV$12:$BV$90
V194: InterimShares | W194: ='Pay Pool Panel'!$BX$12:$BX$90
V195: Export_08 | W195: ='Pay Pool Panel'!$BX$3
V196: SalaryShareValue | W196: ='Pay Pool Panel'!$BX$3
V197: aSharesProration | W197: ='Pay Pool Panel'!$BY$12
V198: SalShareProPct | W198: ='Pay Pool Panel'!$BY$12:$BY$90
V199: ProShares | W199: ='Pay Pool Panel'!$BZ$12:$BZ$90
V200: aEmpID | W200: ='Pay Pool Panel'!$C$12
V201: EmployeeID | W201: ='Pay Pool Panel'!$C$12:$C$90
V202: HideCols | W202: ='Pay Pool Panel'!$C$92:$EL$92
V203: UDV1HideCols | W203: ='Pay Pool Panel'!$C$93:$EL$93
V204: UDV2HideCols | W204: ='Pay Pool Panel'!$C$94:$EL$94
V205: UDV3HideCols | W205: ='Pay Pool Panel'!$C$95:$EL$95
V206: TargetRow | W206: ='Pay Pool Panel'!$C$96
V207: FinalShares | W207: ='Pay Pool Panel'!$CG$12:$CG$90
V208: Export_09 | W208: ='Pay Pool Panel'!$CG$3
V209: FinalCalcShareValue | W209: ='Pay Pool Panel'!$CG$3
V210: aInitSalInc | W210: ='Pay Pool Panel'!$CH$12
V211: aBPOver | W211: ='Pay Pool Panel'!$CJ$12
V212: SalIncOverride | W212: ='Pay Pool Panel'!$CJ$12:$CJ$90
V213: SalAdjust | W213: ='Pay Pool Panel'!$CK$10
V214: aBPAdjust | W214: ='Pay Pool Panel'!$CK$12
V215: SalIncAdj | W215: ='Pay Pool Panel'!$CK$12:$CK$90
V216: SalAdjPot | W216: ='Pay Pool Panel'!$CL$10
V217: aPerfAdjJust | W217: ='Pay Pool Panel'!$CL$12
V218: PerfAdjJust | W218: ='Pay Pool Panel'!$CL$12:$CL$90
V219: Wildcard_3 | W219: ='Pay Pool Panel'!$CM$12:$CM$90
... 179 more rows
